Workbook

Sheet Master Sheet
B2: ETAT DE SALAIRES 2020
B4: ="BUREAU NATIONAL "&CHOOSE(MONTH(D5),"JANVIER","FEVRIER","MARS","AVRIL","MAI","JUIN","JUILLET","AOÛT","SEPTEMBRE","OCTOBRE","NOVEMBRE","DECEMBRE") -> BUREAU NATIONAL SEPTEMBRE
B5: MOIS DE PAYE: | D5: 2020-09-27
I6: Date de fin d'année | K6: 2020-12-31
U7: 0.1 | AJ7: 0.0666 | AK7: 0.199 | AM7: 0.01 | AP7: Autres Avanatages
B9: N°Mle | C9: Nom Prénom | D9: Poste | E9: Lieu | F9: Unite | G9: Département | H9: Type d'employé | I9: Situation Matrimoniale | J9: Taux Réduction | K9: Date d'entrée | L9: Anciennété | M9: Salaire de Base 1 | N9: Augmentation Compensation 2015 | O9: Augmentation Compensation 2016 | P9: Augmentation Compensation 2018 | Q9: Sursalaire | R9: Salaire de Base 2 | S9: Acquis Anciens | T9: Indemnites Speciales 1973 | U9: Indemnites Cherte de Vie 1974 | V9: Indemnites Speciales 1982 | W9: ISS (1991) | X9: Prime d'Anciennété | Y9: Indemnite de Fonction | Z9: Prime de Caisse (Risque) | AA9: Indemnite de Logement | AB9: Prime d'intérim | AE9: Montant Salaire Brut 2019 | AF9: Elements Exoneres INPS | AG9: Base INPS | AH9: Elements Exonores ITS | AI9: Base ITS | AJ9: INPS + AMO Part Ouvriere | AK9: INPS Part Patronale | AL9: ITS | AM9: TL (Taxe Logement) | AN9: Autres Retenues/Avances sur salaires | AO9: Total Retenues | AP9: Prime de Transport | AQ9: Indemnite de Rentree Scolaire | AR9: Net à payer | AS9: Cout Salarial Mensuel
B10: =+IF(C10<>"",MAX($B$9:B9)+1,"") -> 1 | C10: Employé 1 | D10: Poste1 | E10: Bamako | F10: Direction Nationale | G10: P.Admin | H10: EMP | I10: M.2 | J10: =IFERROR(VLOOKUP(I10,Paramètre!A:B,2,0),"") -> 0.15 | K10: 2018-08-13 | L10: =+YEARFRAC(K10,$K$6) -> 2.383333333 | M10: 800000 | N10: 300000 | O10: 17166 | R10: =SUM(M10:Q10) -> 1117166 | T10: 1000 | U10: =ROUND(M10*$U$7,0) -> 80000 | W10: 2000 | X10: =ROUND(IF(L10<3,0,IF(AND(L10>=3,L10<=4),M10*3%,IF(AND(L10>=5,L10<15),M10*L10%,IF(AND(L10>=15,L10<40),M10*15%,0)))),0) -> 0 | Y10: 150000 | AA10: 75000 | AE10: =SUM(R10:AD10) -> 1425166 | AF10: 1000 | AG10: =ROUND(AE10-AF10,0) -> 1424166 | AH10: =T10+U10+V10+W10+(Y10-70000)+Z10+(AA10/2) -> 200500 | AI10: =FLOOR(AG10-AH10-AJ10,250) -> 1128750 | AJ10: =ROUND(AG10*$AJ$7,0) -> 94849 | AK10: =ROUND(AG10*$AK$7,0) -> 283409 | AL10: =INDEX(Barème!$B$5:$P$20194,MATCH(AI10,Barème!$A$5:$A$20194,0),MATCH(J10,Barème!$B$4:$P$4,0)) -> 289945 | AM10: =FLOOR(AE10,1000)*$AM$7 -> 14250 | AO10: =AJ10+AL10+AN10 -> 384794 | AP10: 13000 | AR10: =(AE10-AO10)+AP10 -> 1053372 | AS10: =AE10+AK10+AM10+AP10+AQ10 -> 1735825
B11: =+IF(C11<>"",MAX($B$9:B10)+1,"") -> 2 | C11: Employé 2 | D11: Poste2 | E11: Bamako | F11: Direction Nationale | G11: P.Admin | H11: EMP | I11: M.2 | J11: =IFERROR(VLOOKUP(I11,Paramètre!A:B,2,0),"") -> 0.15 | K11: 2019-10-01 | L11: 1.25 | M11: 800000 | N11: 300000 | O11: 17166 | R11: =SUM(M11:Q11) -> 1117166 | S11: 0 | T11: 1000 | U11: =ROUND(M11*$U$7,0) -> 80000 | W11: 2000 | X11: =ROUND(IF(L11<3,0,IF(AND(L11>=3,L11<=4),M11*3%,IF(AND(L11>=5,L11<15),M11*L11%,IF(AND(L11>=15,L11<40),M11*15%,0)))),0) -> 0 | Y11: 150000 | AA11: 75000 | AE11: =SUM(R11:AD11) -> 1425166 | AF11: 2000 | AG11: =ROUND(AE11-AF11,0) -> 1423166 | AH11: =T11+U11+V11+W11+(Y11-70000)+Z11+(AA11/2) -> 200500 | AI11: 1127750 | AJ11: 94783 | AK11: 283210 | AL11: =INDEX(Barème!$B$5:$P$20194,MATCH(AI11,Barème!$A$5:$A$20194,0),MATCH(J11,Barème!$B$4:$P$4,0)) -> 289650 | AM11: 14250 | AO11: 384433 | AP11: 13000 | AR11: 1053733 | AS11: 1735626
B12: =+IF(C12<>"",MAX($B$9:B11)+1,"") -> 3 | C12: Employé 3 | D12: Poste3 | E12: Bamako | F12: Direction Nationale | G12: P.Admin | H12: EMP | I12: M.4 | J12: =IFERROR(VLOOKUP(I12,Paramètre!A:B,2,0),"") -> 0.2 | K12: 1996-04-01 | L12: 24.75 | M12: 800000 | N12: 300000 | O12: 17166 | R12: 1117166 | S12: 0 | T12: 1000 | U12: 80000 | W12: 2000 | X12: 120000 | Y12: 150000 | AA12: 75000 | AE12: 1545166 | AF12: 2000 | AG12: 1543166 | AH12: =T12+U12+V12+W12+(Y12-70000)+Z12+(AA12/2)+AB12 -> 200500 | AI12: 1239750 | AJ12: 102775 | AK12: 307090 | AL12: =INDEX(Barème!$B$5:$P$20194,MATCH(AI12,Barème!$A$5:$A$20194,0),MATCH(J12,Barème!$B$4:$P$4,0)) -> 302197 | AM12: 15450 | AO12: 404972 | AP12: 13000 | AR12: 1153194 | AS12: 1880706
B13: =+IF(C13<>"",MAX($B$9:B12)+1,"") -> 4 | C13: Employé 4 | D13: Poste4 | E13: Bamako | F13: Direction Nationale | G13: P.Admin | H13: EMP | I13: M.5 | J13: =IFERROR(VLOOKUP(I13,Paramètre!A:B,2,0),"") -> 0.225 | K13: 2020-08-01 | L13: 0.4166666667 | M13: 800000 | N13: 300000 | O13: 17166 | Q13: 113834 | R13: 1231000 | S13: 0 | T13: 1000 | U13: 80000 | V13: 1000 | W13: 2000 | X13: 0 | Y13: 150000 | Z13: 0 | AA13: 75000 | AE13: 1540000 | AF13: 2000 | AG13: 1538000 | AH13: =T13+U13+V13+W13+Z13+(AA13/2)+80000 -> 201500 | AI13: 1234000 | AJ13: 102431 | AK13: 306062 | AL13: =INDEX(Barème!$B$5:$P$20194,MATCH(AI13,Barème!$A$5:$A$20194,0),MATCH(J13,Barème!$B$4:$P$4,0)) -> 290445 | AM13: 15400 | AO13: 392876 | AP13: 13000 | AR13: 1160124 | AS13: 1874462
B14: =+IF(C14<>"",MAX($B$9:B13)+1,"") -> 5 | C14: Employé 5 | D14: Poste5 | E14: Bamako | F14: Direction Nationale | G14: P.Admin | H14: EMP | I14: M.5 | J14: =IFERROR(VLOOKUP(I14,Paramètre!A:B,2,0),"") -> 0.225 | K14: 1997-09-01 | L14: 23.33333333 | M14: 500000 | N14: 56203.01428 | O14: 17166.37186 | R14: 573369.3861 | S14: 97795.36 | T14: 1000 | U14: 50000 | W14: 5000 | X14: 75000 | Y14: 150000 | AA14: 75000 | AE14: 1027164.746 | AF14: 1000 | AG14: 1026165 | AH14: =T14+U14+V14+W14+(Y14-70000)+Z14+(AA14/2) -> 173500 | AI14: 784250 | AJ14: 68343 | AK14: 204207 | AL14: =INDEX(Barème!$B$5:$P$20194,MATCH(AI14,Barème!$A$5:$A$20194,0),MATCH(J14,Barème!$B$4:$P$4,0)) -> 170474 | AM14: 10270 | AO14: 238817 | AP14: 13000 | AR14: 801347.7461 | AS14: 1254641.746
B15: =+IF(C15<>"",MAX($B$9:B14)+1,"") -> 6 | C15: Employé 6 | D15: Poste6 | E15: Bamako | F15: Direction Nationale | G15: P.Admin | H15: EMP | I15: M.5 | J15: =IFERROR(VLOOKUP(I15,Paramètre!A:B,2,0),"") -> 0.225 | K15: 2001-07-01 | L15: 19.5 | M15: 425000 | N15: 0 | O15: 17166 | R15: 442166 | S15: 250000 | T15: 1000 | U15: 42500 | W15: 5000 | X15: 63750 | Y15: 100000 | AA15: 0 | AE15: 904416 | AF15: 1000 | AG15: 903416 | AH15: =T15+U15+V15+W15+(Y15-20000)+Z15+(AA15/2) -> 128500 | AI15: 714500 | AJ15: 60168 | AK15: 179780 | AL15: =INDEX(Barème!$B$5:$P$20194,MATCH(AI15,Barème!$A$5:$A$20194,0),MATCH(J15,Barème!$B$4:$P$4,0)) -> 151868 | AM15: 9040 | AO15: 212036 | AP15: 13000 | AR15: 705380 | AS15: 1106236
B16: =+IF(C16<>"",MAX($B$9:B15)+1,"") -> 7 | C16: Employé 7 | D16: Poste7 | E16: Bamako | F16: Direction Nationale | G16: P.Admin | H16: EMP | I16: M.0 | J16: =IFERROR(VLOOKUP(I16,Paramètre!A:B,2,0),"") -> 0.1 | K16: 2020-07-15 | L16: 0.4611111111 | M16: 500000 | Q16: 331666 | R16: 831666 | S16: 0 | T16: 1000 | U16: 50000 | V16: 1000 | W16: 2000 | X16: 0 | Y16: 120000 | Z16: 0 | AA16: 0 | AE16: 1005666 | AF16: 2000 | AG16: 1003666 | AH16: =T16+U16+V16+W16+Z16+(AA16/2) -> 54000 | AI16: 882750 | AJ16: 66844 | AK16: 199730 | AL16: =INDEX(Barème!$B$5:$P$20194,MATCH(AI16,Barème!$A$5:$A$20194,0),MATCH(J16,Barème!$B$4:$P$4,0)) -> 231330 | AM16: 10050 | AO16: 298174 | AP16: 13000 | AR16: 720492 | AS16: 1228446
B17: =+IF(C17<>"",MAX($B$9:B16)+1,"") -> 8 | C17: Employé 8 | D17: Poste8 | E17: Bamako | F17: Direction Nationale | G17: P.Admin | H17: EMP | I17: M.6 | J17: =IFERROR(VLOOKUP(I17,Paramètre!A:B,2,0),"") -> 0.25 | K17: 2008-09-02 | L17: 12.33055556 | M17: 200000 | N17: 15993.47914 | O17: 10222.22253 | R17: 226215.7017 | S17: 7690 | T17: 1000 | U17: 20000 | V17: 1000 | W17: 5000 | X17: 24661 | Y17: 40000 | AB17: 0 | AE17: 325566.7017 | AF17: 2000 | AG17: 323567 | AH17: =T17+U17+V17+W17+Y17+Z17+(AA17/2)+AB17 -> 67000 | AI17: 235000 | AJ17: 21550 | AK17: 64390 | AL17: =INDEX(Barème!$B$5:$P$20194,MATCH(AI17,Barème!$A$5:$A$20194,0),MATCH(J17,Barème!$B$4:$P$4,0)) -> 25565 | AM17: 3250 | AO17: 47115 | AP17: 13000 | AR17: 291451.7017 | AS17: 406206.7017
B18: =+IF(C18<>"",MAX($B$9:B17)+1,"") -> 9 | C18: Employé 9 | D18: Poste9 | E18: Bamako | F18: Direction Nationale | G18: P.Admin | H18: EMP | I18: M.2 | J18: =IFERROR(VLOOKUP(I18,Paramètre!A:B,2,0),"") -> 0.15 | K18: 2019-09-02 | L18: 1.330555556 | M18: 200000 | N18: 161500 | R18: 361500 | T18: 1000 | U18: 20000 | V18: 1000 | W18: 6500 | X18: 0 | Z18: 10000 | AE18: 400000 | AF18: 2000 | AG18: 398000 | AH18: =T18+U18+V18+W18+Y18+Z18+(AA18/2) -> 38500 | AI18: 332750 | AJ18: 26507 | AK18: 79202 | AL18: =INDEX(Barème!$B$5:$P$20194,MATCH(AI18,Barème!$A$5:$A$20194,0),MATCH(J18,Barème!$B$4:$P$4,0)) -> 55523 | AM18: 4000 | AO18: 82030 | AP18: 13000 | AR18: 330970 | AS18: 496202
B19: =+IF(C19<>"",MAX($B$9:B18)+1,"") -> 10 | C19: Employé 10 | D19: Poste10 | E19: Bamako | F19: Direction Nationale | G19: P.Admin | H19: EMP | I19: M.10 | J19: =IFERROR(VLOOKUP(I19,Paramètre!A:B,2,0),"") -> 0.35 | K19: 2014-04-01 | L19: 6.75 | M19: 425000 | N19: 24750 | R19: 449750 | S19: 100000 | T19: 1000 | U19: 42500 | W19: 5000 | X19: 28688 | Y19: 120000 | AE19: 746938 | AF19: 1000 | AG19: 745938 | AH19: =T19+U19+V19+W19+(Y19-40000)+Z19+(AA19/2) -> 128500 | AI19: 567750 | AJ19: 49679 | AK19: 148442 | AL19: =INDEX(Barème!$B$5:$P$20194,MATCH(AI19,Barème!$A$5:$A$20194,0),MATCH(J19,Barème!$B$4:$P$4,0)) -> 92710 | AM19: 7460 | AN19: 205000 | AO19: 347389 | AP19: 13000 | AR19: 412549 | AS19: 915840
B20: =+IF(C20<>"",MAX($B$9:B19)+1,"") -> 11 | C20: Employé 11 | D20: Poste11 | E20: Bamako | F20: Direction Nationale | G20: P.Admin | H20: EMP | I20: M.4 | J20: =IFERROR(VLOOKUP(I20,Paramètre!A:B,2,0),"") -> 0.2 | K20: 2016-06-01 | L20: 4.583333333 | M20: 325000 | N20: 68000 | O20: 0 | P20: 100000 | R20: 493000 | S20: 0 | T20: 1000 | U20: 32500 | W20: 5000 | X20: 0 | Y20: 80000 | AE20: 611500 | AF20: 1000 | AG20: 610500 | AH20: =T20+U20+V20+W20+Y20+Z20+(AA20/2) -> 118500 | AI20: 451250 | AJ20: 40659 | AK20: 121490 | AL20: =INDEX(Barème!$B$5:$P$20194,MATCH(AI20,Barème!$A$5:$A$20194,0),MATCH(J20,Barème!$B$4:$P$4,0)) -> 84571 | AM20: 6110 | AO20: 125230 | AP20: 13000 | AR20: 499270 | AS20: 752100
B21: =+IF(C21<>"",MAX($B$9:B20)+1,"") -> 12 | C21: Employé 12 | D21: Poste12 | E21: Bamako | F21: Direction Nationale | G21: P.Admin | H21: EMP | I21: M.6 | J21: =IFERROR(VLOOKUP(I21,Paramètre!A:B,2,0),"") -> 0.25 | K21: 2017-01-01 | L21: 4 | M21: 99329 | N21: 10559.74132 | R21: 109888.7413 | S21: =13045+12540+2000 -> 27585 | T21: 1000 | U21: 9933 | V21: 1000 | W21: 6500 | X21: 2980 | AE21: 158886.7413 | AF21: 2000 | AG21: 156887 | AH21: =T21+U21+V21+W21+Y21+Z21+(AA21/2) -> 18433 | AI21: 128000 | AJ21: 10449 | AK21: 31221 | AL21: =INDEX(Barème!$B$5:$P$20194,MATCH(AI21,Barème!$A$5:$A$20194,0),MATCH(J21,Barème!$B$4:$P$4,0)) -> 6747 | AM21: 1580 | AO21: 17196 | AP21: 13000 | AR21: 154690.7413 | AS21: 204687.7413
B22: =+IF(C22<>"",MAX($B$9:B21)+1,"") -> 13 | C22: Employé 13 | D22: Poste13 | E22: Bamako | F22: Direction Nationale | G22: P.Admin | H22: EMP | I22: C.3 | J22: =IFERROR(VLOOKUP(I22,Paramètre!A:B,2,0),"") -> 0.075 | K22: 2017-10-01 | L22: 3.25 | M22: 600000 | O22: 216025 | R22: 816025 | S22: 0 | T22: 0 | U22: 60000 | V22: 0 | W22: 5000 | X22: 18000 | Z22: =M22*10% -> 60000 | AA22: 0 | AE22: 959025 | AF22: 50000 | AG22: 909025 | AH22: =T22+U22+V22+W22+Y22+Z22+(AA22/2) -> 125000 | AI22: 723250 | AJ22: 60541 | AK22: 180896 | AL22: =INDEX(Barème!$B$5:$P$20194,MATCH(AI22,Barème!$A$5:$A$20194,0),MATCH(J22,Barème!$B$4:$P$4,0)) -> 186848 | AM22: 9590 | AO22: 247389 | AR22: 711636 | AS22: 1149511
B23: =+IF(C23<>"",MAX($B$9:B22)+1,"") -> 14 | C23: Employé 14 | D23: Poste14 | E23: Bamako | F23: Direction Nationale | G23: P.Admin | H23: EMP | I23: M.1 | J23: =IFERROR(VLOOKUP(I23,Paramètre!A:B,2,0),"") -> 0.125 | K23: 2018-05-15 | L23: 2.627777778 | M23: 325000 | N23: 68000 | O23: 50000 | P23: 50000 | R23: 493000 | T23: 1000 | U23: 32500 | W23: 5000 | X23: 0 | Y23: 80000 | AE23: 611500 | AF23: 33500 | AG23: 578000 | AH23: =T23+U23+V23+W23+Y23+Z23+(AA23/2) -> 118500 | AI23: 421000 | AJ23: 38495 | AK23: 115022 | AL23: =INDEX(Barème!$B$5:$P$20194,MATCH(AI23,Barème!$A$5:$A$20194,0),MATCH(J23,Barème!$B$4:$P$4,0)) -> 84157 | AM23: 6110 | AO23: 122652 | AP23: 13000 | AR23: 501848 | AS23: 745632
B24: =+IF(C24<>"",MAX($B$9:B23)+1,"") -> 15 | C24: Employé 15 | D24: Poste15 | E24: Bamako | F24: Direction Nationale | G24: P.Admin | H24: EMP | I24: M.0 | J24: =IFERROR(VLOOKUP(I24,Paramètre!A:B,2,0),"") -> 0.1 | K24: 2009-11-01 | L24: 11.16666667 | M24: 800000 | N24: 300000 | O24: 10300 | R24: 1110300 | S24: 0 | T24: 1000 | U24: 80000 | W24: 2000 | X24: 89333 | Y24: 150000 | AA24: 75000 | AB24: 135500 | AE24: 1643133 | AF24: 1000 | AG24: 1642133 | AH24: =T24+U24+V24+W24+(Y24-70000)+Z24+(AA24/2) -> 200500 | AI24: 1332250 | AJ24: 109366 | AK24: 326784 | AL24: =INDEX(Barème!$B$5:$P$20194,MATCH(AI24,Barème!$A$5:$A$20194,0),MATCH(J24,Barème!$B$4:$P$4,0)) -> 372024 | AM24: 16430 | AO24: 481390 | AP24: 13000 | AR24: 1174743 | AS24: 1999347
B25: =+IF(C25<>"",MAX($B$9:B24)+1,"") -> 16 | C25: Employé 16 | D25: Poste16 | E25: Bamako | F25: Direction Nationale | G25: P.Admin | H25: EMP | I25: C.0 | J25: =IFERROR(VLOOKUP(I25,Paramètre!A:B,2,0),"") -> 0 | K25: 2020-09-07 | L25: 0.3166666667 | M25: 275000 | N25: 0 | O25: 0 | Q25: 34315 | R25: 309315 | S25: 0 | T25: 1000 | U25: 27500 | V25: 1000 | W25: 6500 | X25: 0 | Y25: 40000 | Z25: 0 | AA25: 0 | AE25: 385315 | AF25: 2000 | AG25: 383315 | AH25: =T25+U25+V25+W25+Y25+Z25+(AA25/2) -> 76000 | AI25: 281750 | AJ25: 25529 | AK25: 76280 | AL25: =INDEX(Barème!$B$5:$P$20194,MATCH(AI25,Barème!$A$5:$A$20194,0),MATCH(J25,Barème!$B$4:$P$4,0)) -> 49211 | AM25: 3850 | AO25: 74740 | AP25: 13000 | AR25: 323575 | AS25: 478445
B26: =+IF(C26<>"",MAX($B$9:B25)+1,"") -> 17 | C26: Employé 17 | D26: Poste17 | E26: Bamako | F26: Direction Nationale | G26: P.Admin | H26: EMP | I26: M.6 | J26: =IFERROR(VLOOKUP(I26,Paramètre!A:B,2,0),"") -> 0.25 | K26: 2017-11-15 | L26: 3.127777778 | M26: 500000 | O26: 181666 | R26: 681666 | S26: 0 | T26: 0 | U26: 50000 | V26: 0 | W26: 5000 | X26: 15000 | Z26: =M26*10% -> 50000 | AA26: 0 | AE26: 801666 | AF26: 50000 | AG26: 751666 | AH26: =T26+U26+V26+W26+Y26+Z26+(AA26/2) -> 105000 | AI26: 596500 | AJ26: 50061 | AK26: 149582 | AL26: =INDEX(Barème!$B$5:$P$20194,MATCH(AI26,Barème!$A$5:$A$20194,0),MATCH(J26,Barème!$B$4:$P$4,0)) -> 116123 | AM26: 8010 | AO26: 166184 | AR26: 635482 | AS26: 959258
B27: =+IF(C27<>"",MAX($B$9:B26)+1,"") -> 18 | C27: Employé 18 | D27: Poste18 | E27: Bamako | F27: Direction Nationale | G27: P.Admin | H27: EMP | I27: M.1 | J27: =IFERROR(VLOOKUP(I27,Paramètre!A:B,2,0),"") -> 0.125 | K27: 2017-01-01 | L27: 4 | M27: 135000 | N27: 0 | O27: 14000 | P27: 76020 | Q27: 4050 | R27: 229070 | T27: 1000 | U27: 13500 | V27: 2000 | W27: 6500 | X27: 4050 | Y27: 14000 | AE27: 270120 | AF27: 17000 | AG27: 253120 | AH27: =T27+U27+V27+W27+Y27+Z27+(AA27/2) -> 37000 | AI27: 199250 | AJ27: 16858 | AK27: 50371 | AL27: =INDEX(Barème!$B$5:$P$20194,MATCH(AI27,Barème!$A$5:$A$20194,0),MATCH(J27,Barème!$B$4:$P$4,0)) -> 21627 | AM27: 2700 | AO27: 38485 | AP27: 13000 | AR27: 244635 | AS27: 336191
B28: =+IF(C28<>"",MAX($B$9:B27)+1,"") -> 19 | C28: Employé 19 | D28: Poste19 | E28: Bamako | F28: Direction Nationale | G28: P.Admin | H28: EMP | I28: M.10 | J28: =IFERROR(VLOOKUP(I28,Paramètre!A:B,2,0),"") -> 0.35 | K28: 2018-11-19 | L28: 2.116666667 | M28: 425000 | O28: 90000 | P28: 121643.5 | R28: 636643.5 | T28: 1000 | U28: 42500 | V28: 1000 | W28: 5000 | X28: 0 | Y28: 100000 | AE28: 786143.5 | AF28: 2000 | AG28: 784144 | AH28: =T28+U28+V28+W28+(Y28-20000)+Z28+(AA28/2) -> 129500 | AI28: 602250 | AJ28: 52224 | AK28: 156045 | AL28: =INDEX(Barème!$B$5:$P$20194,MATCH(AI28,Barème!$A$5:$A$20194,0),MATCH(J28,Barème!$B$4:$P$4,0)) -> 100317 | AM28: 7860 | AO28: 152541 | AP28: 13000 | AR28: 646602.5 | AS28: 963048.5
B29: =+IF(C29<>"",MAX($B$9:B28)+1,"") -> 20 | C29: Employé 20 | D29: Poste20 | E29: Bamako | F29: Direction Nationale | G29: P.Admin | H29: EMP | I29: M.9 | J29: =IFERROR(VLOOKUP(I29,Paramètre!A:B,2,0),"") -> 0.325 | K29: 2020-01-01 | L29: 1 | M29: 92600 | N29: 0 | O29: 0 | P29: =71300.736+7130 -> 78430.736 | R29: 171030.736 | T29: 1000 | U29: 9260 | V29: 1000 | W29: 6500 | X29: 0 | Y29: 14000 | AE29: 202790.736 | AF29: 20000 | AG29: 182791 | AH29: =T29+U29+V29+W29+Y29+Z29+(AA29/2) -> 31760 | AI29: 138750 | AJ29: 12174 | AK29: 36375 | AL29: =INDEX(Barème!$B$5:$P$20194,MATCH(AI29,Barème!$A$5:$A$20194,0),MATCH(J29,Barème!$B$4:$P$4,0)) -> 6907 | AM29: 2020 | AO29: 19081 | AP29: 13000 | AR29: 196709.736 | AS29: 254185.736
B30: =+IF(C30<>"",MAX($B$9:B29)+1,"") -> 21 | C30: Employé 21 | D30: Poste21 | E30: Bamako | F30: Direction Nationale | G30: P.Admin | H30: EMP | I30: C.0 | J30: =IFERROR(VLOOKUP(I30,Paramètre!A:B,2,0),"") -> 0 | K30: 2016-09-01 | L30: 4.333333333 | M30: 175000 | N30: 13472 | O30: 4620 | R30: 193092 | S30: =21896+523+2000 -> 24419 | T30: 1000 | U30: 17500 | W30: 5000 | X30: 0 | Y30: 10000 | AE30: 251011 | AF30: 1000 | AG30: 250011 | AH30: 33500 | AI30: 199750 | AJ30: 16651 | AK30: 49752 | AL30: =INDEX(Barème!$B$5:$P$20194,MATCH(AI30,Barème!$A$5:$A$20194,0),MATCH(J30,Barème!$B$4:$P$4,0)) -> 25431 | AM30: 2510 | AO30: 42082 | AP30: 13000 | AR30: 221929 | AS30: 316273
B31: =+IF(C31<>"",MAX($B$9:B30)+1,"") -> 22 | C31: Employé 22 | D31: Poste22 | E31: Bamako | F31: Direction Nationale | G31: P.Admin | H31: EMP | I31: M.2 | J31: =IFERROR(VLOOKUP(I31,Paramètre!A:B,2,0),"") -> 0.15 | K31: 2020-03-02 | L31: 0.8305555556 | M31: 186353 | N31: 13472 | O31: 4620 | R31: 204445 | T31: 1000 | U31: 18635 | W31: 5000 | X31: 0 | Y31: 10000 | AE31: 239080 | AF31: 1000 | AG31: 238080 | AH31: 34635 | AI31: 187500 | AJ31: 15856 | AK31: 47378 | AL31: =INDEX(Barème!$B$5:$P$20194,MATCH(AI31,Barème!$A$5:$A$20194,0),MATCH(J31,Barème!$B$4:$P$4,0)) -> 18509 | AM31: 2390 | AO31: 34365 | AP31: 13000 | AR31: 217715 | AS31: 301848
B32: =+IF(C32<>"",MAX($B$9:B31)+1,"") -> 23 | C32: Employé 23 | D32: Poste23 | E32: Bamako | F32: Direction Nationale | G32: P.Admin | H32: EMP | I32: M.3 | J32: =IFERROR(VLOOKUP(I32,Paramètre!A:B,2,0),"") -> 0.175 | K32: 2013-01-01 | L32: 8 | M32: 186353 | N32: 13392 | O32: 10267.28426 | R32: 210012.2843 | T32: 1000 | U32: 18635 | W32: 5000 | X32: 14908 | Y32: 10000 | AE32: 259555.2843 | AF32: 1000 | AG32: 258555 | AH32: 34635 | AI32: 206500 | AJ32: 17220 | AK32: 51452 | AL32: =INDEX(Barème!$B$5:$P$20194,MATCH(AI32,Barème!$A$5:$A$20194,0),MATCH(J32,Barème!$B$4:$P$4,0)) -> 21873 | AM32: 2590 | AO32: 39093 | AP32: 13000 | AR32: 233462.2843 | AS32: 326597.2843
B33: =+IF(C33<>"",MAX($B$9:B32)+1,"") -> 24 | C33: Employé 24 | D33: Poste24 | E33: Bamako | F33: Direction Nationale | G33: P.Admin | H33: EMP | I33: M.5 | J33: =IFERROR(VLOOKUP(I33,Paramètre!A:B,2,0),"") -> 0.225 | K33: 2011-08-01 | L33: 9.416666667 | M33: 186353 | N33: 15078 | O33: 4798.507342 | R33: 206229.5073 | S33: 0 | T33: 1000 | U33: 18635 | W33: 5000 | X33: 17548 | Y33: 10000 | Z33: 10000 | AE33: 268412.5073 | AF33: 1000 | AG33: 267413 | AH33: 44635 | AI33: 204750 | AJ33: 17810 | AK33: 53215 | AL33: =INDEX(Barème!$B$5:$P$20194,MATCH(AI33,Barème!$A$5:$A$20194,0),MATCH(J33,Barème!$B$4:$P$4,0)) -> 19911 | AM33: 2680 | AO33: 37721 | AP33: 13000 | AR33: 243691.5073 | AS33: 337307.5073
B34: =+IF(C34<>"",MAX($B$9:B33)+1,"") -> 25 | C34: Employé 25 | D34: Poste25 | E34: Bamako | F34: Direction Nationale | G34: P.Admin | H34: EMP | I34: M.3 | J34: =IFERROR(VLOOKUP(I34,Paramètre!A:B,2,0),"") -> 0.175 | K34: 2014-10-01 | L34: 6.25 | M34: 80231 | N34: 10454.8361 | O34: 2065.912771 | R34: 92751.74887 | T34: 1000 | U34: 8023 | V34: 1000 | W34: 6500 | X34: 5014 | AE34: 114288.7489 | AF34: 2000 | AG34: 112289 | AH34: 16523 | AI34: 88250 | AJ34: 7478 | AK34: 22346 | AL34: =INDEX(Barème!$B$5:$P$20194,MATCH(AI34,Barème!$A$5:$A$20194,0),MATCH(J34,Barème!$B$4:$P$4,0)) -> 3054 | AM34: 1140 | AO34: 10532 | AP34: 13000 | AR34: 116756.7489 | AS34: 150774.7489
B35: =+IF(C35<>"",MAX($B$9:B34)+1,"") -> 26 | C35: Employé 26 | D35: Poste26 | E35: Bamako | F35: Direction Nationale | G35: P.Admin | H35: EMP | I35: M.3 | J35: =IFERROR(VLOOKUP(I35,Paramètre!A:B,2,0),"") -> 0.175 | K35: 2006-10-01 | L35: 14.25 | M35: 186353 | N35: 16197 | O35: 4798.507342 | R35: 207348.5073 | S35: 10253.22 | T35: 1000 | U35: 18635 | W35: 5000 | X35: 26555 | Y35: 11000 | Z35: 0 | AE35: 279791.7273 | AF35: 1000 | AG35: 278792 | AH35: 35635 | AI35: 224500 | AJ35: 18568 | AK35: 55480 | AL35: =INDEX(Barème!$B$5:$P$20194,MATCH(AI35,Barème!$A$5:$A$20194,0),MATCH(J35,Barème!$B$4:$P$4,0)) -> 26116 | AM35: 2790 | AO35: 44684 | AP35: 13000 | AR35: 248107.7273 | AS35: 351061.7273
B36: =+IF(C36<>"",MAX($B$9:B35)+1,"") -> 27 | C36: Employé 27 | D36: Poste27 | E36: Bamako | F36: Direction Nationale | G36: P.Admin | H36: EMP | I36: M.2 | J36: =IFERROR(VLOOKUP(I36,Paramètre!A:B,2,0),"") -> 0.15 | K36: 2015-07-01 | L36: 5.5 | M36: 186353 | N36: 13472 | O36: 4620 | R36: 204445 | T36: 1000 | U36: 18635 | W36: 5000 | X36: 10249 | Y36: 10000 | AE36: 249329 | AF36: 1000 | AG36: 248329 | AH36: =T36+U36+V36+W36+Y36+Z36+(AA36/2) -> 34635 | AI36: 197000 | AJ36: 16539 | AK36: 49417 | AL36: =INDEX(Barème!$B$5:$P$20194,MATCH(AI36,Barème!$A$5:$A$20194,0),MATCH(J36,Barème!$B$4:$P$4,0)) -> 20419 | AM36: 2490 | AO36: 36958 | AP36: 13000 | AR36: 225371 | AS36: 314236
B38: =COUNT(B10:B36) -> 27 | M38: =SUM(M10:M37) -> 10213925 | N38: 2000544.071 | O38: 710999.8061 | P38: 426094.236 | Q38: 483865 | R38: 13835428.11 | S38: 517742.58 | T38: 25000 | U38: 1021391 | V38: 11000 | W38: 126000 | X38: 515736 | Y38: 1669000 | Z38: 130000 | AA38: 450000 | AB38: 135500 | AE38: =SUM(AE10:AE37) -> 18436797.69 | AF38: 202500 | AG38: 18234300 | AH38: 2587391 | AI38: 14429750 | AJ38: 1214407 | AK38: 3628628 | AL38: 3063552 | AM38: 184270 | AN38: 205000 | AO38: 4482959 | AP38: 325000 | AQ38: 0 | AR38: 14278838.69 | AS38: 22574695.69

Sheet MODELE
A9: BULLETIN DE SALAIRE
B11: Mois | D11: ='Master Sheet'!D5 -> 2020-09-27
B12: ='Master Sheet'!C9 -> Nom Prénom | D12: Employé 1
B13: ='Master Sheet'!I9 -> Situation Matrimoniale | D13: =INDEX('Master Sheet'!$D$10:$AS$398,MATCH($D$12,'Master Sheet'!$C$10:$C$398,0),MATCH(B13,'Master Sheet'!$D$9:$AS$9,0)) -> M.2 | E13: =VLOOKUP(D13,Paramètre!A:B,2,0) -> 0.15
B14: ='Master Sheet'!D9 -> Poste | D14: =INDEX('Master Sheet'!$D$10:$AS$398,MATCH($D$12,'Master Sheet'!$C$10:$C$398,0),MATCH(B14,'Master Sheet'!$D$9:$AS$9,0)) -> Poste1
B15: ='Master Sheet'!K9 -> Date d'entrée | D15: =INDEX('Master Sheet'!$D$10:$AS$398,MATCH($D$12,'Master Sheet'!$C$10:$C$398,0),MATCH(B15,'Master Sheet'!$D$9:$AS$9,0)) -> 2018-08-13
A17: 2012 | B17: Libellés | F17: Montant
B18: ='Master Sheet'!M9 -> Salaire de Base 1 | F18: =IFERROR(INDEX('Master Sheet'!$D$10:$AS$398,MATCH($D$12,'Master Sheet'!$C$10:$C$398,0),MATCH(B18,'Master Sheet'!$D$9:$AS$9,0)),0) -> 800000
B19: ='Master Sheet'!N9 -> Augmentation Compensation 2015 | F19: =IFERROR(INDEX('Master Sheet'!$D$10:$AS$398,MATCH($D$12,'Master Sheet'!$C$10:$C$398,0),MATCH(B19,'Master Sheet'!$D$9:$AS$9,0)),0) -> 300000
B20: ='Master Sheet'!O9 -> Augmentation Compensation 2016 | F20: =IFERROR(INDEX('Master Sheet'!$D$10:$AS$398,MATCH($D$12,'Master Sheet'!$C$10:$C$398,0),MATCH(B20,'Master Sheet'!$D$9:$AS$9,0)),0) -> 17166
B21: ='Master Sheet'!Q9 -> Sursalaire | F21: =IFERROR(INDEX('Master Sheet'!$D$10:$AS$398,MATCH($D$12,'Master Sheet'!$C$10:$C$398,0),MATCH(B21,'Master Sheet'!$D$9:$AS$9,0)),0) -> 0
F22: =IFERROR(INDEX('Master Sheet'!$D$10:$AS$398,MATCH($D$12,'Master Sheet'!$C$10:$C$398,0),MATCH(B22,'Master Sheet'!$D$9:$AS$9,0)),0) -> 0
B23: ='Master Sheet'!R9 -> Salaire de Base 2 | F23: =IFERROR(INDEX('Master Sheet'!$D$10:$AS$398,MATCH($D$12,'Master Sheet'!$C$10:$C$398,0),MATCH(B23,'Master Sheet'!$D$9:$AS$9,0)),0) -> 1117166 | G23: =SUM(F18:F22)-F23 -> 0
B24: ='Master Sheet'!S9 -> Acquis Anciens | F24: =IFERROR(INDEX('Master Sheet'!$D$10:$AS$398,MATCH($D$12,'Master Sheet'!$C$10:$C$398,0),MATCH(B24,'Master Sheet'!$D$9:$AS$9,0)),0) -> 0
B25: ='Master Sheet'!T9 -> Indemnites Speciales 1973 | F25: =IFERROR(INDEX('Master Sheet'!$D$10:$AS$398,MATCH($D$12,'Master Sheet'!$C$10:$C$398,0),MATCH(B25,'Master Sheet'!$D$9:$AS$9,0)),0) -> 1000
B26: ='Master Sheet'!U9 -> Indemnites Cherte de Vie 1974 | F26: =IFERROR(INDEX('Master Sheet'!$D$10:$AS$398,MATCH($D$12,'Master Sheet'!$C$10:$C$398,0),MATCH(B26,'Master Sheet'!$D$9:$AS$9,0)),0) -> 80000
B27: ='Master Sheet'!V9 -> Indemnites Speciales 1982 | F27: =IFERROR(INDEX('Master Sheet'!$D$10:$AS$398,MATCH($D$12,'Master Sheet'!$C$10:$C$398,0),MATCH(B27,'Master Sheet'!$D$9:$AS$9,0)),0) -> 0
B28: ='Master Sheet'!W9 -> ISS (1991) | F28: =IFERROR(INDEX('Master Sheet'!$D$10:$AS$398,MATCH($D$12,'Master Sheet'!$C$10:$C$398,0),MATCH(B28,'Master Sheet'!$D$9:$AS$9,0)),0) -> 2000
B29: ='Master Sheet'!X9 -> Prime d'Anciennété | F29: =IFERROR(INDEX('Master Sheet'!$D$10:$AS$398,MATCH($D$12,'Master Sheet'!$C$10:$C$398,0),MATCH(B29,'Master Sheet'!$D$9:$AS$9,0)),0) -> 0
B30: ='Master Sheet'!Y9 -> Indemnite de Fonction | F30: =IFERROR(INDEX('Master Sheet'!$D$10:$AS$398,MATCH($D$12,'Master Sheet'!$C$10:$C$398,0),MATCH(B30,'Master Sheet'!$D$9:$AS$9,0)),0) -> 150000
B31: ='Master Sheet'!Z9 -> Prime de Caisse (Risque) | F31: =IFERROR(INDEX('Master Sheet'!$D$10:$AS$398,MATCH($D$12,'Master Sheet'!$C$10:$C$398,0),MATCH(B31,'Master Sheet'!$D$9:$AS$9,0)),0) -> 0
B32: ='Master Sheet'!AA9 -> Indemnite de Logement | F32: =IFERROR(INDEX('Master Sheet'!$D$10:$AS$398,MATCH($D$12,'Master Sheet'!$C$10:$C$398,0),MATCH(B32,'Master Sheet'!$D$9:$AS$9,0)),0) -> 75000
B33: ='Master Sheet'!AB9 -> Prime d'intérim | F33: =IFERROR(INDEX('Master Sheet'!$D$10:$AS$398,MATCH($D$12,'Master Sheet'!$C$10:$C$398,0),MATCH(B33,'Master Sheet'!$D$9:$AS$9,0)),0) -> 0
B35: ='Master Sheet'!AE9 -> Montant Salaire Brut 2019 | F35: =IFERROR(INDEX('Master Sheet'!$D$10:$AS$398,MATCH($D$12,'Master Sheet'!$C$10:$C$398,0),MATCH(B35,'Master Sheet'!$D$9:$AS$9,0)),0) -> 1425166 | G35: =SUM(F23:F34)-F35 -> 0
B36: ='Master Sheet'!AF9 -> Elements Exoneres INPS | F36: =IFERROR(INDEX('Master Sheet'!$D$10:$AS$398,MATCH($D$12,'Master Sheet'!$C$10:$C$398,0),MATCH(B36,'Master Sheet'!$D$9:$AS$9,0)),0) -> 1000
B37: ='Master Sheet'!AH9 -> Elements Exonores ITS | F37: =IFERROR(INDEX('Master Sheet'!$D$10:$AS$398,MATCH($D$12,'Master Sheet'!$C$10:$C$398,0),MATCH(B37,'Master Sheet'!$D$9:$AS$9,0)),0) -> 200500
A39: RUBRIQUES | C39: BASE | D39: TAUX | F39: RETENUES
A40: ='Master Sheet'!AG9 -> Base INPS | C40: =IFERROR(INDEX('Master Sheet'!$D$10:$AS$398,MATCH($D$12,'Master Sheet'!$C$10:$C$398,0),MATCH(A40,'Master Sheet'!$D$9:$AS$9,0)),0) -> 1424166 | D40: 0.036 | E40: ='Master Sheet'!#REF! ->  | F40: =IFERROR(INDEX('Master Sheet'!$D$10:$AS$398,MATCH($D$12,'Master Sheet'!$C$10:$C$398,0),MATCH(E40,'Master Sheet'!$D$9:$AS$9,0)),0) -> 0
A41: =A40 -> Base INPS | C41: =IFERROR(INDEX('Master Sheet'!$D$10:$AS$398,MATCH($D$12,'Master Sheet'!$C$10:$C$398,0),MATCH(A41,'Master Sheet'!$D$9:$AS$9,0)),0) -> 1424166 | D41: 0.0306 | E41: ='Master Sheet'!#REF! ->  | F41: =IFERROR(INDEX('Master Sheet'!$D$10:$AS$398,MATCH($D$12,'Master Sheet'!$C$10:$C$398,0),MATCH(E41,'Master Sheet'!$D$9:$AS$9,0)),0) -> 0
A42: ='Master Sheet'!AI9 -> Base ITS | C42: =IFERROR(INDEX('Master Sheet'!$D$10:$AS$398,MATCH($D$12,'Master Sheet'!$C$10:$C$398,0),MATCH(A42,'Master Sheet'!$D$9:$AS$9,0)),0) -> 1128750 | E42: ='Master Sheet'!AL9 -> ITS | F42: =IFERROR(INDEX('Master Sheet'!$D$10:$AS$398,MATCH($D$12,'Master Sheet'!$C$10:$C$398,0),MATCH(E42,'Master Sheet'!$D$9:$AS$9,0)),0) -> 289945
C43: ='Master Sheet'!J9 -> Taux Réduction
D44: Total retenues | F44: =SUM(F40:F42) -> 289945
D45: ='Master Sheet'!AP9 -> Prime de Transport | F45: =IFERROR(INDEX('Master Sheet'!$D$10:$AS$398,MATCH($D$12,'Master Sheet'!$C$10:$C$398,0),MATCH(D45,'Master Sheet'!$D$9:$AS$9,0)),0) -> 13000
A46: Règlé le : | C46: =D11 -> 2020-09-27 | D46: ='Master Sheet'!AQ9 -> Indemnite de Rentree Scolaire | F46: =IFERROR(INDEX('Master Sheet'!$D$10:$AS$398,MATCH($D$12,'Master Sheet'!$C$10:$C$398,0),MATCH(D46,'Master Sheet'!$D$9:$AS$9,0)),0) -> 0
D48: ='Master Sheet'!AN9 -> Autres Retenues/Avances sur salaires | F48: =IFERROR(INDEX('Master Sheet'!$D$10:$AS$398,MATCH($D$12,'Master Sheet'!$C$10:$C$398,0),MATCH(D48,'Master Sheet'!$D$9:$AS$9,0)),0) -> 0
D50: ='Master Sheet'!AR9 -> Net à payer | F50: =SUM(F35,-F44,F45:F47,-F48) -> 1148221
F51: =IFERROR(INDEX('Master Sheet'!$D$10:$AS$398,MATCH($D$12,'Master Sheet'!$C$10:$C$398,0),MATCH(D50,'Master Sheet'!$D$9:$AS$9,0)),0)-F50 -> -94849
A53: L'EMPLOYE | D53: CACHET DE L'EMPLOYEUR
A55: Merci de conserver vos bulletins pour votre dossier de retraite !

Sheet Paramètre (hidden)
A2: Statut | B2: Tx
A3: C.0 | B3: 0
A4: C.1 | B4: =+B3+2.5% -> 0.025
A5: C.2 | B5: =+B4+2.5% -> 0.05
A6: C.3 | B6: 0.075
A7: C.4 | B7: 0.1
A8: C.5 | B8: 0.125
A9: C.6 | B9: 0.15
A10: C.7 | B10: 0.175
A11: C.8 | B11: =+B10+2.5% -> 0.2
A12: C.9 | B12: =+B11+2.5% -> 0.225
A13: C.10 | B13: =+B12+2.5% -> 0.25
A14: M.0 | B14: 0.1
A15: M.1 | B15: =+B14+2.5% -> 0.125
A16: M.2 | B16: =+B15+2.5% -> 0.15
A17: M.3 | B17: 0.175
A18: M.4 | B18: 0.2
A19: M.5 | B19: 0.225
A20: M.6 | B20: 0.25
A21: M.7 | B21: 0.275
A22: M.8 | B22: 0.3
A23: M.9 | B23: 0.325
A24: M.10 | B24: =+B23+2.5% -> 0.35

Sheet Barème (hidden)
A1: Barème de l'impôt sur Traitements et Salaire Mensuel du Mali applicable à partir du 01 Juillet 2015
A2: Configurer par: | B2: Issaka Keita | C2: issaka.keita@gmail.com | M2: Mise à jour: | N2: 2018-02-07
A4: RI \ Tx | B4: 0 | C4: 0.025 | D4: 0.05 | E4: 0.075 | F4: 0.1 | G4: 0.125 | H4: 0.15 | I4: 0.175 | J4: 0.2 | K4: 0.225 | L4: 0.25 | M4: 0.275 | N4: 0.3 | O4: 0.325 | P4: 0.35
A5: 46000 | B5: 5 | C5: 0 | D5: 0 | E5: 0 | F5: 0 | G5: 0 | H5: 0 | I5: 0 | J5: 0 | K5: 0 | L5: 0 | M5: 0 | N5: 0 | O5: 0 | P5: 0
A6: 46250 | B6: 12 | C6: 0 | D6: 0 | E6: 0 | F6: 0 | G6: 0 | H6: 0 | I6: 0 | J6: 0 | K6: 0 | L6: 0 | M6: 0 | N6: 0 | O6: 0 | P6: 0
A7: 46500 | B7: 20 | C7: 0 | D7: 0 | E7: 0 | F7: 0 | G7: 0 | H7: 0 | I7: 0 | J7: 0 | K7: 0 | L7: 0 | M7: 0 | N7: 0 | O7: 0 | P7: 0
A8: 46750 | B8: 27 | C8: 3 | D8: 0 | E8: 0 | F8: 0 | G8: 0 | H8: 0 | I8: 0 | J8: 0 | K8: 0 | L8: 0 | M8: 0 | N8: 0 | O8: 0 | P8: 0
A9: 47000 | B9: 35 | C9: 11 | D9: 0 | E9: 0 | F9: 0 | G9: 0 | H9: 0 | I9: 0 | J9: 0 | K9: 0 | L9: 0 | M9: 0 | N9: 0 | O9: 0 | P9: 0
A10: 47250 | B10: 42 | C10: 18 | D10: 0 | E10: 0 | F10: 0 | G10: 0 | H10: 0 | I10: 0 | J10: 0 | K10: 0 | L10: 0 | M10: 0 | N10: 0 | O10: 0 | P10: 0
A11: 47500 | B11: 50 | C11: 25 | D11: 0 | E11: 0 | F11: 0 | G11: 0 | H11: 0 | I11: 0 | J11: 0 | K11: 0 | L11: 0 | M11: 0 | N11: 0 | O11: 0 | P11: 0
A12: 47750 | B12: 57 | C12: 32 | D12: 7 | E12: 0 | F12: 0 | G12: 0 | H12: 0 | I12: 0 | J12: 0 | K12: 0 | L12: 0 | M12: 0 | N12: 0 | O12: 0 | P12: 0
A13: 48000 | B13: 65 | C13: 39 | D13: 14 | E13: 0 | F13: 0 | G13: 0 | H13: 0 | I13: 0 | J13: 0 | K13: 0 | L13: 0 | M13: 0 | N13: 0 | O13: 0 | P13: 0
A14: 48250 | B14: 76 | C14: 50 | D14: 24 | E14: 0 | F14: 0 | G14: 0 | H14: 0 | I14: 0 | J14: 0 | K14: 0 | L14: 0 | M14: 0 | N14: 0 | O14: 0 | P14: 0
A15: 48500 | B15: 101 | C15: 74 | D15: 47 | E15: 21 | F15: 0 | G15: 0 | H15: 0 | I15: 0 | J15: 0 | K15: 0 | L15: 0 | M15: 0 | N15: 0 | O15: 0 | P15: 0
A16: 48750 | B16: 126 | C16: 98 | D16: 71 | E16: 43 | F16: 16 | G16: 0 | H16: 0 | I16: 0 | J16: 0 | K16: 0 | L16: 0 | M16: 0 | N16: 0 | O16: 0 | P16: 0
A17: 49000 | B17: 151 | C17: 123 | D17: 94 | E17: 66 | F17: 38 | G17: 10 | H17: 0 | I17: 0 | J17: 0 | K17: 0 | L17: 0 | M17: 0 | N17: 0 | O17: 0 | P17: 0
A18: 49250 | B18: 176 | C18: 147 | D18: 118 | E18: 89 | F18: 60 | G18: 31 | H18: 2 | I18: 0 | J18: 0 | K18: 0 | L18: 0 | M18: 0 | N18: 0 | O18: 0 | P18: 0
A19: 49500 | B19: 201 | C19: 171 | D19: 141 | E19: 112 | F19: 82 | G19: 52 | H19: 22 | I19: 0 | J19: 0 | K19: 0 | L19: 0 | M19: 0 | N19: 0 | O19: 0 | P19: 0
A20: 49750 | B20: 226 | C20: 195 | D20: 165 | E20: 134 | F20: 104 | G20: 73 | H20: 43 | I20: 12 | J20: 0 | K20: 0 | L20: 0 | M20: 0 | N20: 0 | O20: 0 | P20: 0
A21: 50000 | B21: 251 | C21: 220 | D21: 188 | E21: 157 | F21: 126 | G21: 95 | H21: 63 | I21: 32 | J21: 1 | K21: 0 | L21: 0 | M21: 0 | N21: 0 | O21: 0 | P21: 0
A22: 50250 | B22: 276 | C22: 244 | D22: 212 | E22: 180 | F22: 148 | G22: 116 | H22: 84 | I22: 52 | J22: 20 | K22: 0 | L22: 0 | M22: 0 | N22: 0 | O22: 0 | P22: 0
A23: 50500 | B23: 301 | C23: 268 | D23: 235 | E23: 203 | F23: 170 | G23: 137 | H23: 104 | I23: 72 | J23: 39 | K23: 6 | L23: 0 | M23: 0 | N23: 0 | O23: 0 | P23: 0
A24: 50750 | B24: 326 | C24: 292 | D24: 259 | E24: 225 | F24: 192 | G24: 158 | H24: 125 | I24: 91 | J24: 58 | K24: 24 | L24: 0 | M24: 0 | N24: 0 | O24: 0 | P24: 0
A25: 51000 | B25: 351 | C25: 317 | D25: 282 | E25: 248 | F25: 214 | G25: 180 | H25: 145 | I25: 111 | J25: 77 | K25: 43 | L25: 8 | M25: 0 | N25: 0 | O25: 0 | P25: 0
A26: 51250 | B26: 376 | C26: 341 | D26: 306 | E26: 271 | F26: 236 | G26: 201 | H26: 166 | I26: 131 | J26: 96 | K26: 61 | L26: 26 | M26: 0 | N26: 0 | O26: 0 | P26: 0
A27: 51500 | B27: 401 | C27: 365 | D27: 329 | E27: 294 | F27: 258 | G27: 222 | H27: 186 | I27: 151 | J27: 115 | K27: 79 | L27: 43 | M27: 7 | N27: 0 | O27: 0 | P27: 0
A28: 51750 | B28: 426 | C28: 389 | D28: 353 | E28: 316 | F28: 280 | G28: 243 | H28: 207 | I28: 170 | J28: 134 | K28: 97 | L28: 61 | M28: 24 | N28: 0 | O28: 0 | P28: 0
A29: 52000 | B29: 451 | C29: 414 | D29: 376 | E29: 339 | F29: 302 | G29: 265 | H29: 227 | I29: 190 | J29: 153 | K29: 116 | L29: 78 | M29: 41 | N29: 4 | O29: 0 | P29: 0
A30: 52250 | B30: 476 | C30: 438 | D30: 400 | E30: 362 | F30: 324 | G30: 286 | H30: 248 | I30: 210 | J30: 172 | K30: 134 | L30: 96 | M30: 58 | N30: 20 | O30: 0 | P30: 0
A31: 52500 | B31: 501 | C31: 462 | D31: 423 | E31: 385 | F31: 346 | G31: 307 | H31: 268 | I31: 230 | J31: 191 | K31: 152 | L31: 113 | M31: 74 | N31: 36 | O31: 0 | P31: 0
A32: 52750 | B32: 526 | C32: 486 | D32: 447 | E32: 407 | F32: 368 | G32: 328 | H32: 289 | I32: 249 | J32: 210 | K32: 170 | L32: 131 | M32: 91 | N32: 52 | O32: 12 | P32: 0
A33: 53000 | B33: 551 | C33: 511 | D33: 470 | E33: 430 | F33: 390 | G33: 350 | H33: 309 | I33: 269 | J33: 229 | K33: 189 | L33: 148 | M33: 108 | N33: 68 | O33: 27 | P33: 0
A34: 53250 | B34: 576 | C34: 535 | D34: 494 | E34: 453 | F34: 412 | G34: 371 | H34: 330 | I34: 289 | J34: 248 | K34: 207 | L34: 166 | M34: 125 | N34: 84 | O34: 43 | P34: 2
A35: 53500 | B35: 601 | C35: 559 | D35: 517 | E35: 476 | F35: 434 | G35: 392 | H35: 350 | I35: 309 | J35: 267 | K35: 225 | L35: 183 | M35: 141 | N35: 100 | O35: 58 | P35: 16
A36: 53750 | B36: 626 | C36: 583 | D36: 541 | E36: 498 | F36: 456 | G36: 413 | H36: 371 | I36: 328 | J36: 286 | K36: 243 | L36: 201 | M36: 158 | N36: 116 | O36: 73 | P36: 31
A37: 54000 | B37: 651 | C37: 608 | D37: 564 | E37: 521 | F37: 478 | G37: 435 | H37: 391 | I37: 348 | J37: 305 | K37: 262 | L37: 218 | M37: 175 | N37: 132 | O37: 88 | P37: 45
A38: 54250 | B38: 676 | C38: 632 | D38: 588 | E38: 544 | F38: 500 | G38: 456 | H38: 412 | I38: 368 | J38: 324 | K38: 280 | L38: 236 | M38: 192 | N38: 148 | O38: 104 | P38: 60
A39: 54500 | B39: 701 | C39: 656 | D39: 611 | E39: 567 | F39: 522 | G39: 477 | H39: 432 | I39: 388 | J39: 343 | K39: 298 | L39: 253 | M39: 208 | N39: 164 | O39: 119 | P39: 74
A40: 54750 | B40: 726 | C40: 680 | D40: 635 | E40: 589 | F40: 544 | G40: 498 | H40: 453 | I40: 407 | J40: 362 | K40: 316 | L40: 271 | M40: 225 | N40: 180 | O40: 134 | P40: 89
A41: 55000 | B41: 751 | C41: 705 | D41: 658 | E41: 612 | F41: 566 | G41: 520 | H41: 473 | I41: 427 | J41: 381 | K41: 335 | L41: 288 | M41: 242 | N41: 196 | O41: 149 | P41: 103
A42: 55250 | B42: 776 | C42: 729 | D42: 682 | E42: 635 | F42: 588 | G42: 541 | H42: 494 | I42: 447 | J42: 400 | K42: 353 | L42: 306 | M42: 259 | N42: 212 | O42: 165 | P42: 118
A43: 55500 | B43: 801 | C43: 753 | D43: 705 | E43: 658 | F43: 610 | G43: 562 | H43: 514 | I43: 467 | J43: 419 | K43: 371 | L43: 323 | M43: 275 | N43: 228 | O43: 180 | P43: 132
A44: 55750 | B44: 826 | C44: 777 | D44: 729 | E44: 680 | F44: 632 | G44: 583 | H44: 535 | I44: 486 | J44: 438 | K44: 389 | L44: 341 | M44: 292 | N44: 244 | O44: 195 | P44: 147
A45: 56000 | B45: 851 | C45: 802 | D45: 752 | E45: 703 | F45: 654 | G45: 605 | H45: 555 | I45: 506 | J45: 457 | K45: 408 | L45: 358 | M45: 309 | N45: 260 | O45: 210 | P45: 161
A46: 56250 | B46: 876 | C46: 826 | D46: 776 | E46: 726 | F46: 676 | G46: 626 | H46: 576 | I46: 526 | J46: 476 | K46: 426 | L46: 376 | M46: 326 | N46: 276 | O46: 226 | P46: 176
A47: 56500 | B47: 901 | C47: 850 | D47: 799 | E47: 749 | F47: 698 | G47: 647 | H47: 596 | I47: 546 | J47: 495 | K47: 444 | L47: 393 | M47: 342 | N47: 292 | O47: 241 | P47: 190
A48: 56750 | B48: 926 | C48: 874 | D48: 823 | E48: 771 | F48: 720 | G48: 668 | H48: 617 | I48: 565 | J48: 514 | K48: 462 | L48: 411 | M48: 359 | N48: 308 | O48: 256 | P48: 205
A49: 57000 | B49: 951 | C49: 899 | D49: 846 | E49: 794 | F49: 742 | G49: 690 | H49: 637 | I49: 585 | J49: 533 | K49: 481 | L49: 428 | M49: 376 | N49: 324 | O49: 271 | P49: 219
A50: 57250 | B50: 976 | C50: 923 | D50: 870 | E50: 817 | F50: 764 | G50: 711 | H50: 658 | I50: 605 | J50: 552 | K50: 499 | L50: 446 | M50: 393 | N50: 340 | O50: 287 | P50: 234
A51: 57500 | B51: 1001 | C51: 947 | D51: 893 | E51: 840 | F51: 786 | G51: 732 | H51: 678 | I51: 625 | J51: 571 | K51: 517 | L51: 463 | M51: 409 | N51: 356 | O51: 302 | P51: 248
A52: 57750 | B52: 1026 | C52: 971 | D52: 917 | E52: 862 | F52: 808 | G52: 753 | H52: 699 | I52: 644 | J52: 590 | K52: 535 | L52: 481 | M52: 426 | N52: 372 | O52: 317 | P52: 263
A53: 58000 | B53: 1051 | C53: 996 | D53: 940 | E53: 885 | F53: 830 | G53: 775 | H53: 719 | I53: 664 | J53: 609 | K53: 554 | L53: 498 | M53: 443 | N53: 388 | O53: 332 | P53: 277
A54: 58250 | B54: 1076 | C54: 1020 | D54: 964 | E54: 908 | F54: 852 | G54: 796 | H54: 740 | I54: 684 | J54: 628 | K54: 572 | L54: 516 | M54: 460 | N54: 404 | O54: 348 | P54: 292
A55: 58500 | B55: 1101 | C55: 1044 | D55: 987 | E55: 931 | F55: 874 | G55: 817 | H55: 760 | I55: 704 | J55: 647 | K55: 590 | L55: 533 | M55: 476 | N55: 420 | O55: 363 | P55: 306
A56: 58750 | B56: 1126 | C56: 1068 | D56: 1011 | E56: 953 | F56: 896 | G56: 838 | H56: 781 | I56: 723 | J56: 666 | K56: 608 | L56: 551 | M56: 493 | N56: 436 | O56: 378 | P56: 321
A57: 59000 | B57: 1151 | C57: 1093 | D57: 1034 | E57: 976 | F57: 918 | G57: 860 | H57: 801 | I57: 743 | J57: 685 | K57: 627 | L57: 568 | M57: 510 | N57: 452 | O57: 393 | P57: 335
A58: 59250 | B58: 1176 | C58: 1117 | D58: 1058 | E58: 999 | F58: 940 | G58: 881 | H58: 822 | I58: 763 | J58: 704 | K58: 645 | L58: 586 | M58: 527 | N58: 468 | O58: 409 | P58: 350
A59: 59500 | B59: 1201 | C59: 1141 | D59: 1081 | E59: 1022 | F59: 962 | G59: 902 | H59: 842 | I59: 783 | J59: 723 | K59: 663 | L59: 603 | M59: 543 | N59: 484 | O59: 424 | P59: 364
A60: 59750 | B60: 1226 | C60: 1165 | D60: 1105 | E60: 1044 | F60: 984 | G60: 923 | H60: 863 | I60: 802 | J60: 742 | K60: 681 | L60: 621 | M60: 560 | N60: 500 | O60: 439 | P60: 379
A61: 60000 | B61: 1251 | C61: 1190 | D61: 1128 | E61: 1067 | F61: 1006 | G61: 945 | H61: 883 | I61: 822 | J61: 761 | K61: 700 | L61: 638 | M61: 577 | N61: 516 | O61: 454 | P61: 393
A62: 60250 | B62: 1276 | C62: 1214 | D62: 1152 | E62: 1090 | F62: 1028 | G62: 966 | H62: 904 | I62: 842 | J62: 780 | K62: 718 | L62: 656 | M62: 594 | N62: 532 | O62: 470 | P62: 408
A63: 60500 | B63: 1301 | C63: 1238 | D63: 1175 | E63: 1113 | F63: 1050 | G63: 987 | H63: 924 | I63: 862 | J63: 799 | K63: 736 | L63: 673 | M63: 610 | N63: 548 | O63: 485 | P63: 422
A64: 60750 | B64: 1326 | C64: 1262 | D64: 1199 | E64: 1135 | F64: 1072 | G64: 1008 | H64: 945 | I64: 881 | J64: 818 | K64: 754 | L64: 691 | M64: 627 | N64: 564 | O64: 500 | P64: 437
A65: 61000 | B65: 1351 | C65: 1287 | D65: 1222 | E65: 1158 | F65: 1094 | G65: 1030 | H65: 965 | I65: 901 | J65: 837 | K65: 773 | L65: 708 | M65: 644 | N65: 580 | O65: 515 | P65: 451
A66: 61250 | B66: 1376 | C66: 1311 | D66: 1246 | E66: 1181 | F66: 1116 | G66: 1051 | H66: 986 | I66: 921 | J66: 856 | K66: 791 | L66: 726 | M66: 661 | N66: 596 | O66: 531 | P66: 466
A67: 61500 | B67: 1401 | C67: 1335 | D67: 1269 | E67: 1204 | F67: 1138 | G67: 1072 | H67: 1006 | I67: 941 | J67: 875 | K67: 809 | L67: 743 | M67: 677 | N67: 612 | O67: 546 | P67: 480
A68: 61750 | B68: 1426 | C68: 1359 | D68: 1293 | E68: 1226 | F68: 1160 | G68: 1093 | H68: 1027 | I68: 960 | J68: 894 | K68: 827 | L68: 761 | M68: 694 | N68: 628 | O68: 561 | P68: 495
A69: 62000 | B69: 1451 | C69: 1384 | D69: 1316 | E69: 1249 | F69: 1182 | G69: 1115 | H69: 1047 | I69: 980 | J69: 913 | K69: 846 | L69: 778 | M69: 711 | N69: 644 | O69: 576 | P69: 509
A70: 62250 | B70: 1476 | C70: 1408 | D70: 1340 | E70: 1272 | F70: 1204 | G70: 1136 | H70: 1068 | I70: 1000 | J70: 932 | K70: 864 | L70: 796 | M70: 728 | N70: 660 | O70: 592 | P70: 524
A71: 62500 | B71: 1501 | C71: 1432 | D71: 1363 | E71: 1295 | F71: 1226 | G71: 1157 | H71: 1088 | I71: 1020 | J71: 951 | K71: 882 | L71: 813 | M71: 744 | N71: 676 | O71: 607 | P71: 538
A72: 62750 | B72: 1526 | C72: 1456 | D72: 1387 | E72: 1317 | F72: 1248 | G72: 1178 | H72: 1109 | I72: 1039 | J72: 970 | K72: 900 | L72: 831 | M72: 761 | N72: 692 | O72: 622 | P72: 553
A73: 63000 | B73: 1551 | C73: 1481 | D73: 1410 | E73: 1340 | F73: 1270 | G73: 1200 | H73: 1129 | I73: 1059 | J73: 989 | K73: 919 | L73: 848 | M73: 778 | N73: 708 | O73: 637 | P73: 567
A74: 63250 | B74: 1576 | C74: 1505 | D74: 1434 | E74: 1363 | F74: 1292 | G74: 1221 | H74: 1150 | I74: 1079 | J74: 1008 | K74: 937 | L74: 866 | M74: 795 | N74: 724 | O74: 653 | P74: 582
A75: 63500 | B75: 1601 | C75: 1529 | D75: 1457 | E75: 1386 | F75: 1314 | G75: 1242 | H75: 1170 | I75: 1099 | J75: 1027 | K75: 955 | L75: 883 | M75: 811 | N75: 740 | O75: 668 | P75: 596
A76: 63750 | B76: 1626 | C76: 1553 | D76: 1481 | E76: 1408 | F76: 1336 | G76: 1263 | H76: 1191 | I76: 1118 | J76: 1046 | K76: 973 | L76: 901 | M76: 828 | N76: 756 | O76: 683 | P76: 611
A77: 64000 | B77: 1651 | C77: 1578 | D77: 1504 | E77: 1431 | F77: 1358 | G77: 1285 | H77: 1211 | I77: 1138 | J77: 1065 | K77: 992 | L77: 918 | M77: 845 | N77: 772 | O77: 698 | P77: 625
A78: 64250 | B78: 1676 | C78: 1602 | D78: 1528 | E78: 1454 | F78: 1380 | G78: 1306 | H78: 1232 | I78: 1158 | J78: 1084 | K78: 1010 | L78: 936 | M78: 862 | N78: 788 | O78: 714 | P78: 640
A79: 64500 | B79: 1701 | C79: 1626 | D79: 1551 | E79: 1477 | F79: 1402 | G79: 1327 | H79: 1252 | I79: 1178 | J79: 1103 | K79: 1028 | L79: 953 | M79: 878 | N79: 804 | O79: 729 | P79: 654
A80: 64750 | B80: 1726 | C80: 1650 | D80: 1575 | E80: 1499 | F80: 1424 | G80: 1348 | H80: 1273 | I80: 1197 | J80: 1122 | K80: 1046 | L80: 971 | M80: 895 | N80: 820 | O80: 744 | P80: 669
A81: 65000 | B81: 1751 | C81: 1675 | D81: 1598 | E81: 1522 | F81: 1446 | G81: 1370 | H81: 1293 | I81: 1217 | J81: 1141 | K81: 1065 | L81: 988 | M81: 912 | N81: 836 | O81: 759 | P81: 683
A82: 65250 | B82: 1776 | C82: 1699 | D82: 1622 | E82: 1545 | F82: 1468 | G82: 1391 | H82: 1314 | I82: 1237 | J82: 1160 | K82: 1083 | L82: 1006 | M82: 929 | N82: 852 | O82: 775 | P82: 698
A83: 65500 | B83: 1801 | C83: 1723 | D83: 1645 | E83: 1568 | F83: 1490 | G83: 1412 | H83: 1334 | I83: 1257 | J83: 1179 | K83: 1101 | L83: 1023 | M83: 945 | N83: 868 | O83: 790 | P83: 712
A84: 65750 | B84: 1826 | C84: 1747 | D84: 1669 | E84: 1590 | F84: 1512 | G84: 1433 | H84: 1355 | I84: 1276 | J84: 1198 | K84: 1119 | L84: 1041 | M84: 962 | N84: 884 | O84: 805 | P84: 727
A85: 66000 | B85: 1851 | C85: 1772 | D85: 1692 | E85: 1613 | F85: 1534 | G85: 1455 | H85: 1375 | I85: 1296 | J85: 1217 | K85: 1138 | L85: 1058 | M85: 979 | N85: 900 | O85: 820 | P85: 741
A86: 66250 | B86: 1876 | C86: 1796 | D86: 1716 | E86: 1636 | F86: 1556 | G86: 1476 | H86: 1396 | I86: 1316 | J86: 1236 | K86: 1156 | L86: 1076 | M86: 996 | N86: 916 | O86: 836 | P86: 756
A87: 66500 | B87: 1901 | C87: 1820 | D87: 1739 | E87: 1659 | F87: 1578 | G87: 1497 | H87: 1416 | I87: 1336 | J87: 1255 | K87: 1174 | L87: 1093 | M87: 1012 | N87: 932 | O87: 851 | P87: 770
A88: 66750 | B88: 1926 | C88: 1844 | D88: 1763 | E88: 1681 | F88: 1600 | G88: 1518 | H88: 1437 | I88: 1355 | J88: 1274 | K88: 1192 | L88: 1111 | M88: 1029 | N88: 948 | O88: 866 | P88: 785
A89: 67000 | B89: 1951 | C89: 1869 | D89: 1786 | E89: 1704 | F89: 1622 | G89: 1540 | H89: 1457 | I89: 1375 | J89: 1293 | K89: 1211 | L89: 1128 | M89: 1046 | N89: 964 | O89: 881 | P89: 799
A90: 67250 | B90: 1976 | C90: 1893 | D90: 1810 | E90: 1727 | F90: 1644 | G90: 1561 | H90: 1478 | I90: 1395 | J90: 1312 | K90: 1229 | L90: 1146 | M90: 1063 | N90: 980 | O90: 897 | P90: 814
A91: 67500 | B91: 2001 | C91: 1917 | D91: 1833 | E91: 1750 | F91: 1666 | G91: 1582 | H91: 1498 | I91: 1415 | J91: 1331 | K91: 1247 | L91: 1163 | M91: 1079 | N91: 996 | O91: 912 | P91: 828
A92: 67750 | B92: 2026 | C92: 1941 | D92: 1857 | E92: 1772 | F92: 1688 | G92: 1603 | H92: 1519 | I92: 1434 | J92: 1350 | K92: 1265 | L92: 1181 | M92: 1096 | N92: 1012 | O92: 927 | P92: 843
A93: 68000 | B93: 2051 | C93: 1966 | D93: 1880 | E93: 1795 | F93: 1710 | G93: 1625 | H93: 1539 | I93: 1454 | J93: 1369 | K93: 1284 | L93: 1198 | M93: 1113 | N93: 1028 | O93: 942 | P93: 857
A94: 68250 | B94: 2076 | C94: 1990 | D94: 1904 | E94: 1818 | F94: 1732 | G94: 1646 | H94: 1560 | I94: 1474 | J94: 1388 | K94: 1302 | L94: 1216 | M94: 1130 | N94: 1044 | O94: 958 | P94: 872
A95: 68500 | B95: 2101 | C95: 2014 | D95: 1927 | E95: 1841 | F95: 1754 | G95: 1667 | H95: 1580 | I95: 1494 | J95: 1407 | K95: 1320 | L95: 1233 | M95: 1146 | N95: 1060 | O95: 973 | P95: 886
A96: 68750 | B96: 2126 | C96: 2038 | D96: 1951 | E96: 1863 | F96: 1776 | G96: 1688 | H96: 1601 | I96: 1513 | J96: 1426 | K96: 1338 | L96: 1251 | M96: 1163 | N96: 1076 | O96: 988 | P96: 901
A97: 69000 | B97: 2151 | C97: 2063 | D97: 1974 | E97: 1886 | F97: 1798 | G97: 1710 | H97: 1621 | I97: 1533 | J97: 1445 | K97: 1357 | L97: 1268 | M97: 1180 | N97: 1092 | O97: 1003 | P97: 915
A98: 69250 | B98: 2176 | C98: 2087 | D98: 1998 | E98: 1909 | F98: 1820 | G98: 1731 | H98: 1642 | I98: 1553 | J98: 1464 | K98: 1375 | L98: 1286 | M98: 1197 | N98: 1108 | O98: 1019 | P98: 930
A99: 69500 | B99: 2201 | C99: 2111 | D99: 2021 | E99: 1932 | F99: 1842 | G99: 1752 | H99: 1662 | I99: 1573 | J99: 1483 | K99: 1393 | L99: 1303 | M99: 1213 | N99: 1124 | O99: 1034 | P99: 944
A100: 69750 | B100: 2226 | C100: 2135 | D100: 2045 | E100: 1954 | F100: 1864 | G100: 1773 | H100: 1683 | I100: 1592 | J100: 1502 | K100: 1411 | L100: 1321 | M100: 1230 | N100: 1140 | O100: 1049 | P100: 959
A101: 70000 | B101: 2251 | C101: 2160 | D101: 2068 | E101: 1977 | F101: 1886 | G101: 1795 | H101: 1703 | I101: 1612 | J101: 1521 | K101: 1430 | L101: 1338 | M101: 1247 | N101: 1156 | O101: 1064 | P101: 973
A102: 70250 | B102: 2276 | C102: 2184 | D102: 2092 | E102: 2000 | F102: 1908 | G102: 1816 | H102: 1724 | I102: 1632 | J102: 1540 | K102: 1448 | L102: 1356 | M102: 1264 | N102: 1172 | O102: 1080 | P102: 988
A103: 70500 | B103: 2301 | C103: 2208 | D103: 2115 | E103: 2023 | F103: 1930 | G103: 1837 | H103: 1744 | I103: 1652 | J103: 1559 | K103: 1466 | L103: 1373 | M103: 1280 | N103: 1188 | O103: 1095 | P103: 1002
A104: 70750 | B104: 2326 | C104: 2232 | D104: 2139 | E104: 2045 | F104: 1952 | G104: 1858 | H104: 1765 | I104: 1671 | J104: 1578 | K104: 1484 | L104: 1391 | M104: 1297 | N104: 1204 | O104: 1110 | P104: 1017
A105: 71000 | B105: 2351 | C105: 2257 | D105: 2162 | E105: 2068 | F105: 1974 | G105: 1880 | H105: 1785 | I105: 1691 | J105: 1597 | K105: 1503 | L105: 1408 | M105: 1314 | N105: 1220 | O105: 1125 | P105: 1031
A106: 71250 | B106: 2376 | C106: 2281 | D106: 2186 | E106: 2091 | F106: 1996 | G106: 1901 | H106: 1806 | I106: 1711 | J106: 1616 | K106: 1521 | L106: 1426 | M106: 1331 | N106: 1236 | O106: 1141 | P106: 1046
A107: 71500 | B107: 2401 | C107: 2305 | D107: 2209 | E107: 2114 | F107: 2018 | G107: 1922 | H107: 1826 | I107: 1731 | J107: 1635 | K107: 1539 | L107: 1443 | M107: 1347 | N107: 1252 | O107: 1156 | P107: 1060
A108: 71750 | B108: 2426 | C108: 2329 | D108: 2233 | E108: 2136 | F108: 2040 | G108: 1943 | H108: 1847 | I108: 1750 | J108: 1654 | K108: 1557 | L108: 1461 | M108: 1364 | N108: 1268 | O108: 1171 | P108: 1075
A109: 72000 | B109: 2451 | C109: 2354 | D109: 2256 | E109: 2159 | F109: 2062 | G109: 1965 | H109: 1867 | I109: 1770 | J109: 1673 | K109: 1576 | L109: 1478 | M109: 1381 | N109: 1284 | O109: 1186 | P109: 1089
A110: 72250 | B110: 2476 | C110: 2378 | D110: 2280 | E110: 2182 | F110: 2084 | G110: 1986 | H110: 1888 | I110: 1790 | J110: 1692 | K110: 1594 | L110: 1496 | M110: 1398 | N110: 1300 | O110: 1202 | P110: 1104
A111: 72500 | B111: 2501 | C111: 2402 | D111: 2303 | E111: 2205 | F111: 2106 | G111: 2007 | H111: 1908 | I111: 1810 | J111: 1711 | K111: 1612 | L111: 1513 | M111: 1414 | N111: 1316 | O111: 1217 | P111: 1118
A112: 72750 | B112: 2526 | C112: 2426 | D112: 2327 | E112: 2227 | F112: 2128 | G112: 2028 | H112: 1929 | I112: 1829 | J112: 1730 | K112: 1630 | L112: 1531 | M112: 1431 | N112: 1332 | O112: 1232 | P112: 1133
A113: 73000 | B113: 2551 | C113: 2451 | D113: 2350 | E113: 2250 | F113: 2150 | G113: 2050 | H113: 1949 | I113: 1849 | J113: 1749 | K113: 1649 | L113: 1548 | M113: 1448 | N113: 1348 | O113: 1247 | P113: 1147
A114: 73250 | B114: 2576 | C114: 2475 | D114: 2374 | E114: 2273 | F114: 2172 | G114: 2071 | H114: 1970 | I114: 1869 | J114: 1768 | K114: 1667 | L114: 1566 | M114: 1465 | N114: 1364 | O114: 1263 | P114: 1162
A115: 73500 | B115: 2601 | C115: 2499 | D115: 2397 | E115: 2296 | F115: 2194 | G115: 2092 | H115: 1990 | I115: 1889 | J115: 1787 | K115: 1685 | L115: 1583 | M115: 1481 | N115: 1380 | O115: 1278 | P115: 1176
A116: 73750 | B116: 2626 | C116: 2523 | D116: 2421 | E116: 2318 | F116: 2216 | G116: 2113 | H116: 2011 | I116: 1908 | J116: 1806 | K116: 1703 | L116: 1601 | M116: 1498 | N116: 1396 | O116: 1293 | P116: 1191
A117: 74000 | B117: 2651 | C117: 2548 | D117: 2444 | E117: 2341 | F117: 2238 | G117: 2135 | H117: 2031 | I117: 1928 | J117: 1825 | K117: 1722 | L117: 1618 | M117: 1515 | N117: 1412 | O117: 1308 | P117: 1205
A118: 74250 | B118: 2676 | C118: 2572 | D118: 2468 | E118: 2364 | F118: 2260 | G118: 2156 | H118: 2052 | I118: 1948 | J118: 1844 | K118: 1740 | L118: 1636 | M118: 1532 | N118: 1428 | O118: 1324 | P118: 1220
A119: 74500 | B119: 2701 | C119: 2596 | D119: 2491 | E119: 2387 | F119: 2282 | G119: 2177 | H119: 2072 | I119: 1968 | J119: 1863 | K119: 1758 | L119: 1653 | M119: 1548 | N119: 1444 | O119: 1339 | P119: 1234
A120: 74750 | B120: 2726 | C120: 2620 | D120: 2515 | E120: 2409 | F120: 2304 | G120: 2198 | H120: 2093 | I120: 1987 | J120: 1882 | K120: 1776 | L120: 1671 | M120: 1565 | N120: 1460 | O120: 1354 | P120: 1249
A121: 75000 | B121: 2751 | C121: 2645 | D121: 2538 | E121: 2432 | F121: 2326 | G121: 2220 | H121: 2113 | I121: 2007 | J121: 1901 | K121: 1795 | L121: 1688 | M121: 1582 | N121: 1476 | O121: 1369 | P121: 1263
A122: 75250 | B122: 2776 | C122: 2669 | D122: 2562 | E122: 2455 | F122: 2348 | G122: 2241 | H122: 2134 | I122: 2027 | J122: 1920 | K122: 1813 | L122: 1706 | M122: 1599 | N122: 1492 | O122: 1385 | P122: 1278
A123: 75500 | B123: 2801 | C123: 2693 | D123: 2585 | E123: 2478 | F123: 2370 | G123: 2262 | H123: 2154 | I123: 2047 | J123: 1939 | K123: 1831 | L123: 1723 | M123: 1615 | N123: 1508 | O123: 1400 | P123: 1292
A124: 75750 | B124: 2826 | C124: 2717 | D124: 2609 | E124: 2500 | F124: 2392 | G124: 2283 | H124: 2175 | I124: 2066 | J124: 1958 | K124: 1849 | L124: 1741 | M124: 1632 | N124: 1524 | O124: 1415 | P124: 1307
A125: 76000 | B125: 2851 | C125: 2742 | D125: 2632 | E125: 2523 | F125: 2414 | G125: 2305 | H125: 2195 | I125: 2086 | J125: 1977 | K125: 1868 | L125: 1758 | M125: 1649 | N125: 1540 | O125: 1430 | P125: 1321
A126: 76250 | B126: 2876 | C126: 2766 | D126: 2656 | E126: 2546 | F126: 2436 | G126: 2326 | H126: 2216 | I126: 2106 | J126: 1996 | K126: 1886 | L126: 1776 | M126: 1666 | N126: 1556 | O126: 1446 | P126: 1336
A127: 76500 | B127: 2901 | C127: 2790 | D127: 2679 | E127: 2569 | F127: 2458 | G127: 2347 | H127: 2236 | I127: 2126 | J127: 2015 | K127: 1904 | L127: 1793 | M127: 1682 | N127: 1572 | O127: 1461 | P127: 1350
A128: 76750 | B128: 2926 | C128: 2814 | D128: 2703 | E128: 2591 | F128: 2480 | G128: 2368 | H128: 2257 | I128: 2145 | J128: 2034 | K128: 1922 | L128: 1811 | M128: 1699 | N128: 1588 | O128: 1476 | P128: 1365
A129: 77000 | B129: 2951 | C129: 2839 | D129: 2726 | E129: 2614 | F129: 2502 | G129: 2390 | H129: 2277 | I129: 2165 | J129: 2053 | K129: 1941 | L129: 1828 | M129: 1716 | N129: 1604 | O129: 1491 | P129: 1379
A130: 77250 | B130: 2976 | C130: 2863 | D130: 2750 | E130: 2637 | F130: 2524 | G130: 2411 | H130: 2298 | I130: 2185 | J130: 2072 | K130: 1959 | L130: 1846 | M130: 1733 | N130: 1620 | O130: 1507 | P130: 1394
A131: 77500 | B131: 3001 | C131: 2887 | D131: 2773 | E131: 2660 | F131: 2546 | G131: 2432 | H131: 2318 | I131: 2205 | J131: 2091 | K131: 1977 | L131: 1863 | M131: 1749 | N131: 1636 | O131: 1522 | P131: 1408
A132: 77750 | B132: 3026 | C132: 2911 | D132: 2797 | E132: 2682 | F132: 2568 | G132: 2453 | H132: 2339 | I132: 2224 | J132: 2110 | K132: 1995 | L132: 1881 | M132: 1766 | N132: 1652 | O132: 1537 | P132: 1423
A133: 78000 | B133: 3051 | C133: 2936 | D133: 2820 | E133: 2705 | F133: 2590 | G133: 2475 | H133: 2359 | I133: 2244 | J133: 2129 | K133: 2014 | L133: 1898 | M133: 1783 | N133: 1668 | O133: 1552 | P133: 1437
A134: 78250 | B134: 3076 | C134: 2960 | D134: 2844 | E134: 2728 | F134: 2612 | G134: 2496 | H134: 2380 | I134: 2264 | J134: 2148 | K134: 2032 | L134: 1916 | M134: 1800 | N134: 1684 | O134: 1568 | P134: 1452
A135: 78500 | B135: 3101 | C135: 2984 | D135: 2867 | E135: 2751 | F135: 2634 | G135: 2517 | H135: 2400 | I135: 2284 | J135: 2167 | K135: 2050 | L135: 1933 | M135: 1816 | N135: 1700 | O135: 1583 | P135: 1466
A136: 78750 | B136: 3126 | C136: 3008 | D136: 2891 | E136: 2773 | F136: 2656 | G136: 2538 | H136: 2421 | I136: 2303 | J136: 2186 | K136: 2068 | L136: 1951 | M136: 1833 | N136: 1716 | O136: 1598 | P136: 1481
A137: 79000 | B137: 3151 | C137: 3033 | D137: 2914 | E137: 2796 | F137: 2678 | G137: 2560 | H137: 2441 | I137: 2323 | J137: 2205 | K137: 2087 | L137: 1968 | M137: 1850 | N137: 1732 | O137: 1613 | P137: 1495
A138: 79250 | B138: 3176 | C138: 3057 | D138: 2938 | E138: 2819 | F138: 2700 | G138: 2581 | H138: 2462 | I138: 2343 | J138: 2224 | K138: 2105 | L138: 1986 | M138: 1867 | N138: 1748 | O138: 1629 | P138: 1510
A139: 79500 | B139: 3201 | C139: 3081 | D139: 2961 | E139: 2842 | F139: 2722 | G139: 2602 | H139: 2482 | I139: 2363 | J139: 2243 | K139: 2123 | L139: 2003 | M139: 1883 | N139: 1764 | O139: 1644 | P139: 1524
A140: 79750 | B140: 3226 | C140: 3105 | D140: 2985 | E140: 2864 | F140: 2744 | G140: 2623 | H140: 2503 | I140: 2382 | J140: 2262 | K140: 2141 | L140: 2021 | M140: 1900 | N140: 1780 | O140: 1659 | P140: 1539
A141: 80000 | B141: 3251 | C141: 3130 | D141: 3008 | E141: 2887 | F141: 2766 | G141: 2645 | H141: 2523 | I141: 2402 | J141: 2281 | K141: 2160 | L141: 2038 | M141: 1917 | N141: 1796 | O141: 1674 | P141: 1553
A142: 80250 | B142: 3276 | C142: 3154 | D142: 3032 | E142: 2910 | F142: 2788 | G142: 2666 | H142: 2544 | I142: 2422 | J142: 2300 | K142: 2178 | L142: 2056 | M142: 1934 | N142: 1812 | O142: 1690 | P142: 1568
A143: 80500 | B143: 3301 | C143: 3178 | D143: 3055 | E143: 2933 | F143: 2810 | G143: 2687 | H143: 2564 | I143: 2442 | J143: 2319 | K143: 2196 | L143: 2073 | M143: 1950 | N143: 1828 | O143: 1705 | P143: 1582
A144: 80750 | B144: 3326 | C144: 3202 | D144: 3079 | E144: 2955 | F144: 2832 | G144: 2708 | H144: 2585 | I144: 2461 | J144: 2338 | K144: 2214 | L144: 2091 | M144: 1967 | N144: 1844 | O144: 1720 | P144: 1597
A145: 81000 | B145: 3351 | C145: 3227 | D145: 3102 | E145: 2978 | F145: 2854 | G145: 2730 | H145: 2605 | I145: 2481 | J145: 2357 | K145: 2233 | L145: 2108 | M145: 1984 | N145: 1860 | O145: 1735 | P145: 1611
A146: 81250 | B146: 3376 | C146: 3251 | D146: 3126 | E146: 3001 | F146: 2876 | G146: 2751 | H146: 2626 | I146: 2501 | J146: 2376 | K146: 2251 | L146: 2126 | M146: 2001 | N146: 1876 | O146: 1751 | P146: 1626
A147: 81500 | B147: 3401 | C147: 3275 | D147: 3149 | E147: 3024 | F147: 2898 | G147: 2772 | H147: 2646 | I147: 2521 | J147: 2395 | K147: 2269 | L147: 2143 | M147: 2017 | N147: 1892 | O147: 1766 | P147: 1640
A148: 81750 | B148: 3426 | C148: 3299 | D148: 3173 | E148: 3046 | F148: 2920 | G148: 2793 | H148: 2667 | I148: 2540 | J148: 2414 | K148: 2287 | L148: 2161 | M148: 2034 | N148: 1908 | O148: 1781 | P148: 1655
A149: 82000 | B149: 3451 | C149: 3324 | D149: 3196 | E149: 3069 | F149: 2942 | G149: 2815 | H149: 2687 | I149: 2560 | J149: 2433 | K149: 2306 | L149: 2178 | M149: 2051 | N149: 1924 | O149: 1796 | P149: 1669
A150: 82250 | B150: 3476 | C150: 3348 | D150: 3220 | E150: 3092 | F150: 2964 | G150: 2836 | H150: 2708 | I150: 2580 | J150: 2452 | K150: 2324 | L150: 2196 | M150: 2068 | N150: 1940 | O150: 1812 | P150: 1684
A151: 82500 | B151: 3501 | C151: 3372 | D151: 3243 | E151: 3115 | F151: 2986 | G151: 2857 | H151: 2728 | I151: 2600 | J151: 2471 | K151: 2342 | L151: 2213 | M151: 2084 | N151: 1956 | O151: 1827 | P151: 1698
A152: 82750 | B152: 3526 | C152: 3396 | D152: 3267 | E152: 3137 | F152: 3008 | G152: 2878 | H152: 2749 | I152: 2619 | J152: 2490 | K152: 2360 | L152: 2231 | M152: 2101 | N152: 1972 | O152: 1842 | P152: 1713
A153: 83000 | B153: 3551 | C153: 3421 | D153: 3290 | E153: 3160 | F153: 3030 | G153: 2900 | H153: 2769 | I153: 2639 | J153: 2509 | K153: 2379 | L153: 2248 | M153: 2118 | N153: 1988 | O153: 1857 | P153: 1727
A154: 83250 | B154: 3576 | C154: 3445 | D154: 3314 | E154: 3183 | F154: 3052 | G154: 2921 | H154: 2790 | I154: 2659 | J154: 2528 | K154: 2397 | L154: 2266 | M154: 2135 | N154: 2004 | O154: 1873 | P154: 1742
A155: 83500 | B155: 3601 | C155: 3469 | D155: 3337 | E155: 3206 | F155: 3074 | G155: 2942 | H155: 2810 | I155: 2679 | J155: 2547 | K155: 2415 | L155: 2283 | M155: 2151 | N155: 2020 | O155: 1888 | P155: 1756
A156: 83750 | B156: 3626 | C156: 3493 | D156: 3361 | E156: 3228 | F156: 3096 | G156: 2963 | H156: 2831 | I156: 2698 | J156: 2566 | K156: 2433 | L156: 2301 | M156: 2168 | N156: 2036 | O156: 1903 | P156: 1771
A157: 84000 | B157: 3651 | C157: 3518 | D157: 3384 | E157: 3251 | F157: 3118 | G157: 2985 | H157: 2851 | I157: 2718 | J157: 2585 | K157: 2452 | L157: 2318 | M157: 2185 | N157: 2052 | O157: 1918 | P157: 1785
A158: 84250 | B158: 3676 | C158: 3542 | D158: 3408 | E158: 3274 | F158: 3140 | G158: 3006 | H158: 2872 | I158: 2738 | J158: 2604 | K158: 2470 | L158: 2336 | M158: 2202 | N158: 2068 | O158: 1934 | P158: 1800
A159: 84500 | B159: 3701 | C159: 3566 | D159: 3431 | E159: 3297 | F159: 3162 | G159: 3027 | H159: 2892 | I159: 2758 | J159: 2623 | K159: 2488 | L159: 2353 | M159: 2218 | N159: 2084 | O159: 1949 | P159: 1814
A160: 84750 | B160: 3726 | C160: 3590 | D160: 3455 | E160: 3319 | F160: 3184 | G160: 3048 | H160: 2913 | I160: 2777 | J160: 2642 | K160: 2506 | L160: 2371 | M160: 2235 | N160: 2100 | O160: 1964 | P160: 1829
A161: 85000 | B161: 3751 | C161: 3615 | D161: 3478 | E161: 3342 | F161: 3206 | G161: 3070 | H161: 2933 | I161: 2797 | J161: 2661 | K161: 2525 | L161: 2388 | M161: 2252 | N161: 2116 | O161: 1979 | P161: 1843
A162: 85250 | B162: 3776 | C162: 3639 | D162: 3502 | E162: 3365 | F162: 3228 | G162: 3091 | H162: 2954 | I162: 2817 | J162: 2680 | K162: 2543 | L162: 2406 | M162: 2269 | N162: 2132 | O162: 1995 | P162: 1858
A163: 85500 | B163: 3801 | C163: 3663 | D163: 3525 | E163: 3388 | F163: 3250 | G163: 3112 | H163: 2974 | I163: 2837 | J163: 2699 | K163: 2561 | L163: 2423 | M163: 2285 | N163: 2148 | O163: 2010 | P163: 1872
A164: 85750 | B164: 3826 | C164: 3687 | D164: 3549 | E164: 3410 | F164: 3272 | G164: 3133 | H164: 2995 | I164: 2856 | J164: 2718 | K164: 2579 | L164: 2441 | M164: 2302 | N164: 2164 | O164: 2025 | P164: 1887
A165: 86000 | B165: 3851 | C165: 3712 | D165: 3572 | E165: 3433 | F165: 3294 | G165: 3155 | H165: 3015 | I165: 2876 | J165: 2737 | K165: 2598 | L165: 2458 | M165: 2319 | N165: 2180 | O165: 2040 | P165: 1901
A166: 86250 | B166: 3876 | C166: 3736 | D166: 3596 | E166: 3456 | F166: 3316 | G166: 3176 | H166: 3036 | I166: 2896 | J166: 2756 | K166: 2616 | L166: 2476 | M166: 2336 | N166: 2196 | O166: 2056 | P166: 1916
A167: 86500 | B167: 3901 | C167: 3760 | D167: 3619 | E167: 3479 | F167: 3338 | G167: 3197 | H167: 3056 | I167: 2916 | J167: 2775 | K167: 2634 | L167: 2493 | M167: 2352 | N167: 2212 | O167: 2071 | P167: 1930
A168: 86750 | B168: 3926 | C168: 3784 | D168: 3643 | E168: 3501 | F168: 3360 | G168: 3218 | H168: 3077 | I168: 2935 | J168: 2794 | K168: 2652 | L168: 2511 | M168: 2369 | N168: 2228 | O168: 2086 | P168: 1945
A169: 87000 | B169: 3951 | C169: 3809 | D169: 3666 | E169: 3524 | F169: 3382 | G169: 3240 | H169: 3097 | I169: 2955 | J169: 2813 | K169: 2671 | L169: 2528 | M169: 2386 | N169: 2244 | O169: 2101 | P169: 1959
A170: 87250 | B170: 3976 | C170: 3833 | D170: 3690 | E170: 3547 | F170: 3404 | G170: 3261 | H170: 3118 | I170: 2975 | J170: 2832 | K170: 2689 | L170: 2546 | M170: 2403 | N170: 2260 | O170: 2117 | P170: 1974
A171: 87500 | B171: 4001 | C171: 3857 | D171: 3713 | E171: 3570 | F171: 3426 | G171: 3282 | H171: 3138 | I171: 2995 | J171: 2851 | K171: 2707 | L171: 2563 | M171: 2419 | N171: 2276 | O171: 2132 | P171: 1988
A172: 87750 | B172: 4026 | C172: 3881 | D172: 3737 | E172: 3592 | F172: 3448 | G172: 3303 | H172: 3159 | I172: 3014 | J172: 2870 | K172: 2725 | L172: 2581 | M172: 2436 | N172: 2292 | O172: 2147 | P172: 2003
A173: 88000 | B173: 4051 | C173: 3906 | D173: 3760 | E173: 3615 | F173: 3470 | G173: 3325 | H173: 3179 | I173: 3034 | J173: 2889 | K173: 2744 | L173: 2598 | M173: 2453 | N173: 2308 | O173: 2162 | P173: 2017
A174: 88250 | B174: 4076 | C174: 3930 | D174: 3784 | E174: 3638 | F174: 3492 | G174: 3346 | H174: 3200 | I174: 3054 | J174: 2908 | K174: 2762 | L174: 2616 | M174: 2470 | N174: 2324 | O174: 2178 | P174: 2032
A175: 88500 | B175: 4101 | C175: 3954 | D175: 3807 | E175: 3661 | F175: 3514 | G175: 3367 | H175: 3220 | I175: 3074 | J175: 2927 | K175: 2780 | L175: 2633 | M175: 2486 | N175: 2340 | O175: 2193 | P175: 2046
A176: 88750 | B176: 4126 | C176: 3978 | D176: 3831 | E176: 3683 | F176: 3536 | G176: 3388 | H176: 3241 | I176: 3093 | J176: 2946 | K176: 2798 | L176: 2651 | M176: 2503 | N176: 2356 | O176: 2208 | P176: 2061
A177: 89000 | B177: 4151 | C177: 4003 | D177: 3854 | E177: 3706 | F177: 3558 | G177: 3410 | H177: 3261 | I177: 3113 | J177: 2965 | K177: 2817 | L177: 2668 | M177: 2520 | N177: 2372 | O177: 2223 | P177: 2075
A178: 89250 | B178: 4176 | C178: 4027 | D178: 3878 | E178: 3729 | F178: 3580 | G178: 3431 | H178: 3282 | I178: 3133 | J178: 2984 | K178: 2835 | L178: 2686 | M178: 2537 | N178: 2388 | O178: 2239 | P178: 2090
A179: 89500 | B179: 4201 | C179: 4051 | D179: 3901 | E179: 3752 | F179: 3602 | G179: 3452 | H179: 3302 | I179: 3153 | J179: 3003 | K179: 2853 | L179: 2703 | M179: 2553 | N179: 2404 | O179: 2254 | P179: 2104
A180: 89750 | B180: 4226 | C180: 4075 | D180: 3925 | E180: 3774 | F180: 3624 | G180: 3473 | H180: 3323 | I180: 3172 | J180: 3022 | K180: 2871 | L180: 2721 | M180: 2570 | N180: 2420 | O180: 2269 | P180: 2119
A181: 90000 | B181: 4251 | C181: 4100 | D181: 3948 | E181: 3797 | F181: 3646 | G181: 3495 | H181: 3343 | I181: 3192 | J181: 3041 | K181: 2890 | L181: 2738 | M181: 2587 | N181: 2436 | O181: 2284 | P181: 2133
A182: 90250 | B182: 4276 | C182: 4124 | D182: 3972 | E182: 3820 | F182: 3668 | G182: 3516 | H182: 3364 | I182: 3212 | J182: 3060 | K182: 2908 | L182: 2756 | M182: 2604 | N182: 2452 | O182: 2300 | P182: 2148
A183: 90500 | B183: 4301 | C183: 4148 | D183: 3995 | E183: 3843 | F183: 3690 | G183: 3537 | H183: 3384 | I183: 3232 | J183: 3079 | K183: 2926 | L183: 2773 | M183: 2620 | N183: 2468 | O183: 2315 | P183: 2162
A184: 90750 | B184: 4326 | C184: 4172 | D184: 4019 | E184: 3865 | F184: 3712 | G184: 3558 | H184: 3405 | I184: 3251 | J184: 3098 | K184: 2944 | L184: 2791 | M184: 2637 | N184: 2484 | O184: 2330 | P184: 2177
A185: 91000 | B185: 4351 | C185: 4197 | D185: 4042 | E185: 3888 | F185: 3734 | G185: 3580 | H185: 3425 | I185: 3271 | J185: 3117 | K185: 2963 | L185: 2808 | M185: 2654 | N185: 2500 | O185: 2345 | P185: 2191
A186: 91250 | B186: 4376 | C186: 4221 | D186: 4066 | E186: 3911 | F186: 3756 | G186: 3601 | H186: 3446 | I186: 3291 | J186: 3136 | K186: 2981 | L186: 2826 | M186: 2671 | N186: 2516 | O186: 2361 | P186: 2206
A187: 91500 | B187: 4401 | C187: 4245 | D187: 4089 | E187: 3934 | F187: 3778 | G187: 3622 | H187: 3466 | I187: 3311 | J187: 3155 | K187: 2999 | L187: 2843 | M187: 2687 | N187: 2532 | O187: 2376 | P187: 2220
A188: 91750 | B188: 4426 | C188: 4269 | D188: 4113 | E188: 3956 | F188: 3800 | G188: 3643 | H188: 3487 | I188: 3330 | J188: 3174 | K188: 3017 | L188: 2861 | M188: 2704 | N188: 2548 | O188: 2391 | P188: 2235
A189: 92000 | B189: 4451 | C189: 4294 | D189: 4136 | E189: 3979 | F189: 3822 | G189: 3665 | H189: 3507 | I189: 3350 | J189: 3193 | K189: 3036 | L189: 2878 | M189: 2721 | N189: 2564 | O189: 2406 | P189: 2249
A190: 92250 | B190: 4476 | C190: 4318 | D190: 4160 | E190: 4002 | F190: 3844 | G190: 3686 | H190: 3528 | I190: 3370 | J190: 3212 | K190: 3054 | L190: 2896 | M190: 2738 | N190: 2580 | O190: 2422 | P190: 2264
A191: 92500 | B191: 4501 | C191: 4342 | D191: 4183 | E191: 4025 | F191: 3866 | G191: 3707 | H191: 3548 | I191: 3390 | J191: 3231 | K191: 3072 | L191: 2913 | M191: 2754 | N191: 2596 | O191: 2437 | P191: 2278
A192: 92750 | B192: 4526 | C192: 4366 | D192: 4207 | E192: 4047 | F192: 3888 | G192: 3728 | H192: 3569 | I192: 3409 | J192: 3250 | K192: 3090 | L192: 2931 | M192: 2771 | N192: 2612 | O192: 2452 | P192: 2293
A193: 93000 | B193: 4551 | C193: 4391 | D193: 4230 | E193: 4070 | F193: 3910 | G193: 3750 | H193: 3589 | I193: 3429 | J193: 3269 | K193: 3109 | L193: 2948 | M193: 2788 | N193: 2628 | O193: 2467 | P193: 2307
A194: 93250 | B194: 4576 | C194: 4415 | D194: 4254 | E194: 4093 | F194: 3932 | G194: 3771 | H194: 3610 | I194: 3449 | J194: 3288 | K194: 3127 | L194: 2966 | M194: 2805 | N194: 2644 | O194: 2483 | P194: 2322
A195: 93500 | B195: 4601 | C195: 4439 | D195: 4277 | E195: 4116 | F195: 3954 | G195: 3792 | H195: 3630 | I195: 3469 | J195: 3307 | K195: 3145 | L195: 2983 | M195: 2821 | N195: 2660 | O195: 2498 | P195: 2336
A196: 93750 | B196: 4626 | C196: 4463 | D196: 4301 | E196: 4138 | F196: 3976 | G196: 3813 | H196: 3651 | I196: 3488 | J196: 3326 | K196: 3163 | L196: 3001 | M196: 2838 | N196: 2676 | O196: 2513 | P196: 2351
A197: 94000 | B197: 4651 | C197: 4488 | D197: 4324 | E197: 4161 | F197: 3998 | G197: 3835 | H197: 3671 | I197: 3508 | J197: 3345 | K197: 3182 | L197: 3018 | M197: 2855 | N197: 2692 | O197: 2528 | P197: 2365
A198: 94250 | B198: 4676 | C198: 4512 | D198: 4348 | E198: 4184 | F198: 4020 | G198: 3856 | H198: 3692 | I198: 3528 | J198: 3364 | K198: 3200 | L198: 3036 | M198: 2872 | N198: 2708 | O198: 2544 | P198: 2380
A199: 94500 | B199: 4701 | C199: 4536 | D199: 4371 | E199: 4207 | F199: 4042 | G199: 3877 | H199: 3712 | I199: 3548 | J199: 3383 | K199: 3218 | L199: 3053 | M199: 2888 | N199: 2724 | O199: 2559 | P199: 2394
A200: 94750 | B200: 4726 | C200: 4560 | D200: 4395 | E200: 4229 | F200: 4064 | G200: 3898 | H200: 3733 | I200: 3567 | J200: 3402 | K200: 3236 | L200: 3071 | M200: 2905 | N200: 2740 | O200: 2574 | P200: 2409
A201: 95000 | B201: 4751 | C201: 4585 | D201: 4418 | E201: 4252 | F201: 4086 | G201: 3920 | H201: 3753 | I201: 3587 | J201: 3421 | K201: 3255 | L201: 3088 | M201: 2922 | N201: 2756 | O201: 2589 | P201: 2423
... 4299 more rows
